Workbook

Sheet TOP
B61: 2017年 3月版

Sheet 11DG100C
G5: 形式 | L5: LDA11D-G/100C
L13: オープン価格★ 屋内用
G14: 光の広がり | L14: 広配光タイプ
G15: 光色 | L15: 昼光色
G16: 全光束（lm） | L16: 1520
B17: ●電球100W形相当の明るさ | G17: 明るさの目安*1 | L17: 白熱電球100W形相当
B18: ●高効率で広がる光 | G18: 定格消費電力（W） | L18: 11.4
B19: ●電球60W形、40W形の | G19: エネルギー消費効率（lm/W） | L19: =ROUNDDOWN(L16/L18,1) -> 133.3
B20: 器具に使える | G20: 質量（g） | L20: 140
B21: ●密閉形器具対応 | G21: 定格寿命（時間）*2 | L21: 40000
B22: ●定格寿命40,000時間 | G22: 寸法 （mm） | J22: 外径 | L22: 60
J23: 全長 | L23: 123
G24: 断熱材施工器具対応 | L24: ×
G25: 密閉形器具対応 | L25: ○（保護機能付き）※1
G26: ＊ 調光（明るさが調整できる）機能の付いた照明器具には使用できません（100％点灯でも使用不可）。
G27: ＊ 断熱材施工器具や屋外では使用できません。
B28: ※1 器具内の温度や周囲温度が高くなると保護回路が働き電力を抑えるため、明るさが低下する場合があります。
B30: 白熱電球とＬＥＤ電球の電気代の試算ができます。目安としてご活用ください。
B31: ■試算条件を入力ください。
C32: ①使用灯数は？ | K32: 1 | N32: 灯 | Q32: 電力料金単価（税込）*3
C34: ②年間使用日数は？ | K34: 365 | N34: 日 | R34: 22 | T34: 円/kWh
C36: ③1日の点灯時間は？ | K36: 6 | N36: 時間/日 | Q36: に設定しています。
C38: ④年間点灯時間 | K38: =K34*K36 -> 2190 | N38: 時間/年 | Q38: ＊ 任意に変更ができます。
C40: ⑤ＬＥＤ電球の購入価格（税込）は？ | N40: 円/灯 | P40: 合計 | Q40: =K32*K40 -> 0 | T40: 円
D41: ＊ イニシャルコストの回収期間を試算します。
B42: ■試算結果
B43: ●年間電気代*3 | J43: 年間電気代 | T43: 低減効果
C45: ◆白熱電球100W形 | H45: 約 | I45: =0.09*K32*K34*K36*R34 -> 4336.2 | L45: 円 | T45: 基準
C46: （100Wタイプ90Wで試算*4）
C48: ◆ＬＥＤ電球100W形 | H48: 約 | I48: =0.0114*K32*K34*K36*R34 -> 549.252 | L48: 円 | T48: =(I45-I48)/I45 -> 0.8733333333
C49: （100Wタイプ11.4Wで試算*5）
H50: 白熱電球100W形と比べ 約 | I50: =I45-I48 -> 3786.948 | L50: 円お得です！（年間電気代の差額）
B52: ●回収期間 | H52: イニシャルコストを 約 | I52: =IF(K40=0,"",ROUNDUP(K40*K32/(I45-I48),1)) ->  | L52: 年で回収できます！
D53: ＊ イニシャルコストの回収期間は、ＬＥＤ電球の購入価格を年間電気代の差額で割り試算しています。
D54: 試算条件によっては、「一般社団法人日本照明工業会ガイド111」 による適正交換時期や耐用の限度を超える場合が
D55: ありますが、寿命を保証するものではありませんので、予めご了承ください。
B57: ＊1 明るさの目安は、JIS C 8158 : 2012 附属書B によります。
B58: ＊2 定格寿命は、LED単体で定められた温度設計に基づいて算出した設計寿命であり、使用環境・使用方法により寿命が異なります。
B59: ＊3 年間電気代は、電力料金22円/kWh（税込）で試算しています（一般社団法人日本照明工業会 技術資料114-1996による）。
B60: ＊4 当社白熱電球100W形（LW100V90W、定格消費電力90W、全光束1,520lm、定格寿命1,000時間）で試算(2011年12月販売終了）。
B61: ＊5 当社LED電球100W形（LDA11D-G/100C、定格消費電力11.4W、全光束1,520lm、定格寿命40,000時間）で試算。
B64: =TOP!B61 -> 2017年 3月版

Sheet 13LG100C
G5: 形式 | L5: LDA13L-G/100C
L13: オープン価格★ 屋内用
G14: 光の広がり | L14: 広配光タイプ
G15: 光色 | L15: 電球色
G16: 全光束（lm） | L16: 1520
B17: ●電球100W形相当の明るさ | G17: 明るさの目安*1 | L17: 白熱電球100W形相当
B18: ●高効率で広がる光 | G18: 定格消費電力（W） | L18: 13.3
B19: ●電球60W形、40W形の | G19: エネルギー消費効率（lm/W） | L19: =ROUNDDOWN(L16/L18,1) -> 114.2
B20: 器具に使える | G20: 質量（g） | L20: 140
B21: ●密閉形器具対応 | G21: 定格寿命（時間）*2 | L21: 40000
B22: ●定格寿命40,000時間 | G22: 寸法 （mm） | J22: 外径 | L22: 60
J23: 全長 | L23: 123
G24: 断熱材施工器具対応 | L24: ×
G25: 密閉形器具対応 | L25: ○（保護機能付き）※1
G26: ＊ 調光（明るさが調整できる）機能の付いた照明器具には使用できません（100％点灯でも使用不可）。
G27: ＊ 断熱材施工器具や屋外では使用できません。
B28: ※1 器具内の温度や周囲温度が高くなると保護回路が働き電力を抑えるため、明るさが低下する場合があります。
B30: 白熱電球とＬＥＤ電球の電気代の試算ができます。目安としてご活用ください。
B31: ■試算条件を入力ください。
C32: ①使用灯数は？ | K32: 1 | N32: 灯 | Q32: 電力料金単価（税込）*3
C34: ②年間使用日数は？ | K34: 365 | N34: 日 | R34: 22 | T34: 円/kWh
C36: ③1日の点灯時間は？ | K36: 6 | N36: 時間/日 | Q36: に設定しています。
C38: ④年間点灯時間 | K38: =K34*K36 -> 2190 | N38: 時間/年 | Q38: ＊ 任意に変更ができます。
C40: ⑤ＬＥＤ電球の購入価格（税込）は？ | N40: 円/灯 | P40: 合計 | Q40: =K32*K40 -> 0 | T40: 円
D41: ＊ イニシャルコストの回収期間を試算します。
B42: ■試算結果
B43: ●年間電気代*3 | J43: 年間電気代 | T43: 低減効果
C45: ◆白熱電球100W形 | H45: 約 | I45: =0.09*K32*K34*K36*R34 -> 4336.2 | L45: 円 | T45: 基準
C46: （100Wタイプ90Wで試算*4）
C48: ◆ＬＥＤ電球100W形 | H48: 約 | I48: =0.0133*K32*K34*K36*R34 -> 640.794 | L48: 円 | T48: =(I45-I48)/I45 -> 0.8522222222
C49: （100Wタイプ13.3Wで試算*5）
H50: 白熱電球100W形と比べ 約 | I50: =I45-I48 -> 3695.406 | L50: 円お得です！（年間電気代の差額）
B52: ●回収期間 | H52: イニシャルコストを 約 | I52: =IF(K40=0,"",ROUNDUP(K40*K32/(I45-I48),1)) ->  | L52: 年で回収できます！
D53: ＊ イニシャルコストの回収期間は、ＬＥＤ電球の購入価格を年間電気代の差額で割り試算しています。
D54: 試算条件によっては、「一般社団法人日本照明工業会ガイド111」 による適正交換時期や耐用の限度を超える場合が
D55: ありますが、寿命を保証するものではありませんので、予めご了承ください。
B57: ＊1 明るさの目安は、JIS C 8158 : 2012 附属書B によります。
B58: ＊2 定格寿命は、LED単体で定められた温度設計に基づいて算出した設計寿命であり、使用環境・使用方法により寿命が異なります。
B59: ＊3 年間電気代は、電力料金22円/kWh（税込）で試算しています（一般社団法人日本照明工業会 技術資料114-1996による）。
B60: ＊4 当社白熱電球100W形（LW100V90W、定格消費電力90W、全光束1,520lm、定格寿命1,000時間）で試算(2011年12月販売終了）。
B61: ＊5 当社LED電球100W形（LDA13L-G/100C、定格消費電力13.3W、全光束1,520lm、定格寿命40,000時間）で試算。
B64: =TOP!B61 -> 2017年 3月版

Sheet 10DG80C
G5: 形式 | L5: LDA10D-G/80C
L13: オープン価格★ 屋内用
G14: 光の広がり | L14: 広配光タイプ
G15: 光色 | L15: 昼光色
G16: 全光束（lm） | L16: 1160
B17: ●電球80W形相当の明るさ | G17: 明るさの目安*1 | L17: 白熱電球80W形相当
B18: ●高効率で広がる光 | G18: 定格消費電力（W） | L18: 9.5
B19: ●電球60W形、40W形の | G19: エネルギー消費効率（lm/W） | L19: =ROUNDDOWN(L16/L18,1) -> 122.1
B20: 器具に使える | G20: 質量（g） | L20: 120
B21: ●密閉形器具対応 | G21: 定格寿命（時間）*2 | L21: 40000
B22: ●定格寿命40,000時間 | G22: 寸法 （mm） | J22: 外径 | L22: 60
J23: 全長 | L23: 123
G24: 断熱材施工器具対応 | L24: ×
G25: 密閉形器具対応 | L25: ○（保護機能付き）※1
G26: ＊ 調光（明るさが調整できる）機能の付いた照明器具には使用できません（100％点灯でも使用不可）。
G27: ＊ 断熱材施工器具や屋外では使用できません。
B28: ※1 器具内の温度や周囲温度が高くなると保護回路が働き電力を抑えるため、明るさが低下する場合があります。
B30: 白熱電球とＬＥＤ電球の電気代の試算ができます。目安としてご活用ください。
B31: ■試算条件を入力ください。
C32: ①使用灯数は？ | K32: 1 | N32: 灯 | Q32: 電力料金単価（税込）*3
C34: ②年間使用日数は？ | K34: 365 | N34: 日 | R34: 22 | T34: 円/kWh
C36: ③1日の点灯時間は？ | K36: 6 | N36: 時間/日 | Q36: に設定しています。
C38: ④年間点灯時間 | K38: =K34*K36 -> 2190 | N38: 時間/年 | Q38: ＊ 任意に変更ができます。
C40: ⑤ＬＥＤ電球の購入価格（税込）は？ | N40: 円/灯 | P40: 合計 | Q40: =K32*K40 -> 0 | T40: 円
D41: ＊ イニシャルコストの回収期間を試算します。
B42: ■試算結果
B43: ●年間電気代*3 | J43: 年間電気代 | T43: 低減効果
C45: ◆白熱電球80W形 | H45: 約 | I45: =0.076*K32*K34*K36*R34 -> 3661.68 | L45: 円 | T45: 基準
C46: （80Wタイプ76Wで試算*4）
C48: ◆ＬＥＤ電球80W形 | H48: 約 | I48: =0.0095*K32*K34*K36*R34 -> 457.71 | L48: 円 | T48: =(I45-I48)/I45 -> 0.875
C49: （80Wタイプ9.5Wで試算*5）
H50: 白熱電球80W形と比べ 約 | I50: =I45-I48 -> 3203.97 | L50: 円お得です！（年間電気代の差額）
B52: ●回収期間 | H52: イニシャルコストを 約 | I52: =IF(K40=0,"",ROUNDUP(K40*K32/(I45-I48),1)) ->  | L52: 年で回収できます！
D53: ＊ イニシャルコストの回収期間は、ＬＥＤ電球の購入価格を年間電気代の差額で割り試算しています。
D54: 試算条件によっては、「一般社団法人日本照明工業会ガイド111」 による適正交換時期や耐用の限度を超える場合が
D55: ありますが、寿命を保証するものではありませんので、予めご了承ください。
B57: ＊1 明るさの目安は、JIS C 8158 : 2012 附属書B によります。
B58: ＊2 定格寿命は、LED単体で定められた温度設計に基づいて算出した設計寿命であり、使用環境・使用方法により寿命が異なります。
B59: ＊3 年間電気代は、電力料金22円/kWh（税込）で試算しています（一般社団法人日本照明工業会 技術資料114-1996による）。
B60: ＊4 当社白熱電球80W形（LW100V76W、定格消費電力76W、全光束1,160lm、定格寿命1,000時間）で試算(2011年12月販売終了）。
B61: ＊5 当社LED電球80W形（LDA10D-G/80C、定格消費電力9.5W、全光束1,160lm、定格寿命40,000時間）で試算。
B64: =TOP!B61 -> 2017年 3月版

Sheet 10LG80C
G5: 形式 | L5: LDA10L-G/80C
L13: オープン価格★ 屋内用
G14: 光の広がり | L14: 広配光タイプ
G15: 光色 | L15: 電球色
G16: 全光束（lm） | L16: 1160
B17: ●電球80W形相当の明るさ | G17: 明るさの目安*1 | L17: 白熱電球80W形相当
B18: ●高効率で広がる光 | G18: 定格消費電力（W） | L18: 10.3
B19: ●電球60W形、40W形の | G19: エネルギー消費効率（lm/W） | L19: =ROUNDDOWN(L16/L18,1) -> 112.6
B20: 器具に使える | G20: 質量（g） | L20: 120
B21: ●密閉形器具対応 | G21: 定格寿命（時間）*2 | L21: 40000
B22: ●定格寿命40,000時間 | G22: 寸法 （mm） | J22: 外径 | L22: 60
J23: 全長 | L23: 123
G24: 断熱材施工器具対応 | L24: ×
G25: 密閉形器具対応 | L25: ○（保護機能付き）※1
G26: ＊ 調光（明るさが調整できる）機能の付いた照明器具には使用できません（100％点灯でも使用不可）。
G27: ＊ 断熱材施工器具や屋外では使用できません。
B28: ※1 器具内の温度や周囲温度が高くなると保護回路が働き電力を抑えるため、明るさが低下する場合があります。
B30: 白熱電球とＬＥＤ電球の電気代の試算ができます。目安としてご活用ください。
B31: ■試算条件を入力ください。
C32: ①使用灯数は？ | K32: 1 | N32: 灯 | Q32: 電力料金単価（税込）*3
C34: ②年間使用日数は？ | K34: 365 | N34: 日 | R34: 22 | T34: 円/kWh
C36: ③1日の点灯時間は？ | K36: 6 | N36: 時間/日 | Q36: に設定しています。
C38: ④年間点灯時間 | K38: =K34*K36 -> 2190 | N38: 時間/年 | Q38: ＊ 任意に変更ができます。
C40: ⑤ＬＥＤ電球の購入価格（税込）は？ | N40: 円/灯 | P40: 合計 | Q40: =K32*K40 -> 0 | T40: 円
D41: ＊ イニシャルコストの回収期間を試算します。
B42: ■試算結果
B43: ●年間電気代*3 | J43: 年間電気代 | T43: 低減効果
C45: ◆白熱電球80W形 | H45: 約 | I45: =0.076*K32*K34*K36*R34 -> 3661.68 | L45: 円 | T45: 基準
C46: （80Wタイプ76Wで試算*4）
C48: ◆ＬＥＤ電球80W形 | H48: 約 | I48: =0.0103*K32*K34*K36*R34 -> 496.254 | L48: 円 | T48: =(I45-I48)/I45 -> 0.8644736842
C49: （80Wタイプ10.3Wで試算*5）
H50: 白熱電球80W形と比べ 約 | I50: =I45-I48 -> 3165.426 | L50: 円お得です！（年間電気代の差額）
B52: ●回収期間 | H52: イニシャルコストを 約 | I52: =IF(K40=0,"",ROUNDUP(K40*K32/(I45-I48),1)) ->  | L52: 年で回収できます！
D53: ＊ イニシャルコストの回収期間は、ＬＥＤ電球の購入価格を年間電気代の差額で割り試算しています。
D54: 試算条件によっては、「一般社団法人日本照明工業会ガイド111」 による適正交換時期や耐用の限度を超える場合が
D55: ありますが、寿命を保証するものではありませんので、予めご了承ください。
B57: ＊1 明るさの目安は、JIS C 8158 : 2012 附属書B によります。
B58: ＊2 定格寿命は、LED単体で定められた温度設計に基づいて算出した設計寿命であり、使用環境・使用方法により寿命が異なります。
B59: ＊3 年間電気代は、電力料金22円/kWh（税込）で試算しています（一般社団法人日本照明工業会 技術資料114-1996による）。
B60: ＊4 当社白熱電球80W形（LW100V76W、定格消費電力76W、全光束1,160lm、定格寿命1,000時間）で試算(2011年12月販売終了）。
B61: ＊5 当社LED電球80W形（LDA10L-G/80C、定格消費電力10.3W、全光束1,160lm、定格寿命40,000時間）で試算。
B64: =TOP!B61 -> 2017年 3月版

Sheet 9DG60HC
G5: 形式 | L5: LDA9D-G/60HC
L13: オープン価格★ 屋内用
G14: 光の広がり | L14: 広配光タイプ
G15: 光色 | L15: 昼光色
G16: 全光束（lm） | L16: 1000
B17: ●全光束1,000lmの | G17: 明るさの目安*1 | L17: 白熱電球60W形相当
B18: 明るい60W | G18: 定格消費電力（W） | L18: 8.7
B19: ●高効率で広がる光 | G19: エネルギー消費効率（lm/W） | L19: =ROUNDDOWN(L16/L18,1) -> 114.9
B20: ●密閉形器具対応 | G20: 質量（g） | L20: 100
B21: ●定格寿命40,000時間 | G21: 定格寿命（時間）*2 | L21: 40000
G22: 寸法 （mm） | J22: 外径 | L22: 60
J23: 全長 | L23: 112
G24: 断熱材施工器具対応 | L24: ×
G25: 密閉形器具対応 | L25: ○（保護機能付き）※1
G26: ＊ 調光（明るさが調整できる）機能の付いた照明器具には使用できません（100％点灯でも使用不可）。
G27: ＊ 断熱材施工器具や屋外では使用できません。
B28: ※1 器具内の温度や周囲温度が高くなると保護回路が働き電力を抑えるため、明るさが低下する場合があります。
B30: 白熱電球とＬＥＤ電球の電気代の試算ができます。目安としてご活用ください。
B31: ■試算条件を入力ください。
C32: ①使用灯数は？ | K32: 1 | N32: 灯 | Q32: 電力料金単価（税込）*3
C34: ②年間使用日数は？ | K34: 365 | N34: 日 | R34: 22 | T34: 円/kWh
C36: ③1日の点灯時間は？ | K36: 6 | N36: 時間/日 | Q36: に設定しています。
C38: ④年間点灯時間 | K38: =K34*K36 -> 2190 | N38: 時間/年 | Q38: ＊ 任意に変更ができます。
C40: ⑤ＬＥＤ電球の購入価格（税込）は？ | N40: 円/灯 | P40: 合計 | Q40: =K32*K40 -> 0 | T40: 円
D41: ＊ イニシャルコストの回収期間を試算します。
B42: ■試算結果
B43: ●年間電気代*3 | J43: 年間電気代 | T43: 低減効果
C45: ◆白熱電球60W形 | H45: 約 | I45: =0.054*K32*K34*K36*R34 -> 2601.72 | L45: 円 | T45: 基準
C46: （60Wタイプ54Wで試算*4）
C48: ◆ＬＥＤ電球60W形 | H48: 約 | I48: =0.0087*K32*K34*K36*R34 -> 419.166 | L48: 円 | T48: =(I45-I48)/I45 -> 0.8388888889
C49: （60Wタイプ8.7Wで試算*5）
H50: 白熱電球60W形と比べ 約 | I50: =I45-I48 -> 2182.554 | L50: 円お得です！（年間電気代の差額）
B52: ●回収期間 | H52: イニシャルコストを 約 | I52: =IF(K40=0,"",ROUNDUP(K40*K32/(I45-I48),1)) ->  | L52: 年で回収できます！
D53: ＊ イニシャルコストの回収期間は、ＬＥＤ電球の購入価格を年間電気代の差額で割り試算しています。
D54: 試算条件によっては、「一般社団法人日本照明工業会ガイド111」 による適正交換時期や耐用の限度を超える場合が
D55: ありますが、寿命を保証するものではありませんので、予めご了承ください。
B57: ＊1 明るさの目安は、JIS C 8158 : 2012 附属書B によります。
B58: ＊2 定格寿命は、LED単体で定められた温度設計に基づいて算出した設計寿命であり、使用環境・使用方法により寿命が異なります。
B59: ＊3 年間電気代は、電力料金22円/kWh（税込）で試算しています（一般社団法人日本照明工業会 技術資料114-1996による）。
B60: ＊4 当社白熱電球60W形（LW100V54W、定格消費電力54W、全光束810lm、定格寿命1,000時間）で試算(2011年12月販売終了）。
B61: ＊5 当社LED電球60W形（LDA9D-G/60HC、定格消費電力8.7W、全光束1,000lm、定格寿命40,000時間）で試算。
B64: =TOP!B61 -> 2017年 3月版

Sheet 9LG60HC
G5: 形式 | L5: LDA9L-G/60HC
L13: オープン価格★ 屋内用
G14: 光の広がり | L14: 広配光タイプ
G15: 光色 | L15: 電球色
G16: 全光束（lm） | L16: 1000
B17: ●全光束1,000lmの | G17: 明るさの目安*1 | L17: 白熱電球60W形相当
B18: 明るい60W | G18: 定格消費電力（W） | L18: 9.3
B19: ●高効率で広がる光 | G19: エネルギー消費効率（lm/W） | L19: =ROUNDDOWN(L16/L18,1) -> 107.5
B20: ●密閉形器具対応 | G20: 質量（g） | L20: 100
B21: ●定格寿命40,000時間 | G21: 定格寿命（時間）*2 | L21: 40000
G22: 寸法 （mm） | J22: 外径 | L22: 60
J23: 全長 | L23: 112
G24: 断熱材施工器具対応 | L24: ×
G25: 密閉形器具対応 | L25: ○（保護機能付き）※1
G26: ＊ 調光（明るさが調整できる）機能の付いた照明器具には使用できません（100％点灯でも使用不可）。
G27: ＊ 断熱材施工器具や屋外では使用できません。
B28: ※1 器具内の温度や周囲温度が高くなると保護回路が働き電力を抑えるため、明るさが低下する場合があります。
B30: 白熱電球とＬＥＤ電球の電気代の試算ができます。目安としてご活用ください。
B31: ■試算条件を入力ください。
C32: ①使用灯数は？ | K32: 1 | N32: 灯 | Q32: 電力料金単価（税込）*3
C34: ②年間使用日数は？ | K34: 365 | N34: 日 | R34: 22 | T34: 円/kWh
C36: ③1日の点灯時間は？ | K36: 6 | N36: 時間/日 | Q36: に設定しています。
C38: ④年間点灯時間 | K38: =K34*K36 -> 2190 | N38: 時間/年 | Q38: ＊ 任意に変更ができます。
C40: ⑤ＬＥＤ電球の購入価格（税込）は？ | N40: 円/灯 | P40: 合計 | Q40: =K32*K40 -> 0 | T40: 円
D41: ＊ イニシャルコストの回収期間を試算します。
B42: ■試算結果
B43: ●年間電気代*3 | J43: 年間電気代 | T43: 低減効果
C45: ◆白熱電球60W形 | H45: 約 | I45: =0.054*K32*K34*K36*R34 -> 2601.72 | L45: 円 | T45: 基準
C46: （60Wタイプ54Wで試算*4）
C48: ◆ＬＥＤ電球60W形 | H48: 約 | I48: =0.0093*K32*K34*K36*R34 -> 448.074 | L48: 円 | T48: =(I45-I48)/I45 -> 0.8277777778
C49: （60Wタイプ9.3Wで試算*5）
H50: 白熱電球60W形と比べ 約 | I50: =I45-I48 -> 2153.646 | L50: 円お得です！（年間電気代の差額）
B52: ●回収期間 | H52: イニシャルコストを 約 | I52: =IF(K40=0,"",ROUNDUP(K40*K32/(I45-I48),1)) ->  | L52: 年で回収できます！
D53: ＊ イニシャルコストの回収期間は、ＬＥＤ電球の購入価格を年間電気代の差額で割り試算しています。
D54: 試算条件によっては、「一般社団法人日本照明工業会ガイド111」 による適正交換時期や耐用の限度を超える場合が
D55: ありますが、寿命を保証するものではありませんので、予めご了承ください。
B57: ＊1 明るさの目安は、JIS C 8158 : 2012 附属書B によります。
B58: ＊2 定格寿命は、LED単体で定められた温度設計に基づいて算出した設計寿命であり、使用環境・使用方法により寿命が異なります。
B59: ＊3 年間電気代は、電力料金22円/kWh（税込）で試算しています（一般社団法人日本照明工業会 技術資料114-1996による）。
B60: ＊4 当社白熱電球60W形（LW100V54W、定格消費電力54W、全光束810lm、定格寿命1,000時間）で試算(2011年12月販売終了）。
B61: ＊5 当社LED電球60W形（LDA9L-G/60HC、定格消費電力9.3W、全光束1,000lm、定格寿命40,000時間）で試算。
B64: =TOP!B61 -> 2017年 3月版

Sheet 7DGS60F
G5: 形式 | L5: LDA7D-G/S/60F
L13: オープン価格★
G14: 光の広がり | L14: 全方向タイプ（配光角２６０度）
G15: 光色 | L15: 昼光色
G16: 全光束（lm） | L16: 810
B17: ●電球60W形相当の明るさ | G17: 明るさの目安*1 | L17: 白熱電球60W形相当
B18: ●配光角260度で全方向に | G18: 定格消費電力（W） | L18: 6.8
B19: 広がる光 | G19: エネルギー消費効率（lm/W） | L19: =ROUNDDOWN(L16/L18,1) -> 119.1
B20: ●断熱材施工器具対応※1 | G20: 質量（g） | L20: 80
B21: ●密閉形器具にも対応※1 | G21: 定格寿命（時間）*2 | L21: 40000
B22: ●屋外用器具にも対応※2 | G22: 寸法 （mm） | J22: 外径 | L22: 60
J23: 全長 | L23: 112
G24: 断熱材施工器具対応 | L24: ○（保護機能付き）※1
G25: 密閉形器具対応 | L25: ○（保護機能付き）※1
G26: ・ 調光（明るさが調整できる）機能の付いた照明器具には使用できません（100％点灯でも使用不可）。
G27: ・ 街路灯には使用できません。
B28: ※1 器具内の温度や周囲温度が高くなると保護回路が働き電力を抑えるため、明るさが低下する場合があります。
B29: ※2 防湿･防雨形の密閉形器具で使用すること、直射日光があたらない場所で使用すること、屋内配線に接続された器具で使用すること。
B31: 白熱電球とＬＥＤ電球の電気代の試算ができます。目安としてご活用ください。
B32: ■試算条件を入力ください。
C33: ①使用灯数は？ | K33: 1 | N33: 灯 | Q33: 電力料金単価（税込）*3
C35: ②年間使用日数は？ | K35: 365 | N35: 日 | R35: 22 | T35: 円/kWh
C37: ③1日の点灯時間は？ | K37: 6 | N37: 時間/日 | Q37: に設定しています。
C39: ④年間点灯時間 | K39: =K35*K37 -> 2190 | N39: 時間/年 | Q39: ＊ 任意に変更ができます。
C41: ⑤ＬＥＤ電球の購入価格（税込）は？ | N41: 円/灯 | P41: 合計 | Q41: =K33*K41 -> 0 | T41: 円
D42: ＊ イニシャルコストの回収期間を試算します。
B43: ■試算結果
B44: ●年間電気代*3 | J44: 年間電気代 | T44: 低減効果
C46: ◆白熱電球60W形 | H46: 約 | I46: =0.054*K33*K35*K37*R35 -> 2601.72 | L46: 円 | T46: 基準
C47: （60Wタイプ54Wで試算*4）
C49: ◆ＬＥＤ電球60W形 | H49: 約 | I49: =$L$18*K33*K35*K37*R35/1000 -> 327.624 | L49: 円 | T49: =(I46-I49)/I46 -> 0.8740740741
C50: （60Wタイプ6.8Wで試算*5）
H51: 白熱電球60W形と比べ 約 | I51: =I46-I49 -> 2274.096 | L51: 円お得です！（年間電気代の差額）
B53: ●回収期間 | H53: イニシャルコストを 約 | I53: =IF(K41=0,"",ROUNDUP(K41*K33/(I46-I49),1)) ->  | L53: 年で回収できます！
D54: ＊ イニシャルコストの回収期間は、ＬＥＤ電球の購入価格を年間電気代の差額で割り試算しています。
D55: 試算条件によっては、「一般社団法人日本照明工業会ガイド111」 による適正交換時期や耐用の限度を超える場合が
D56: ありますが、寿命を保証するものではありませんので、予めご了承ください。
B58: ＊1 明るさの目安は、JIS C 8158 : 2012 附属書B によります。
B59: ＊2 定格寿命は、LED単体で定められた温度設計に基づいて算出した設計寿命であり、使用環境・使用方法により寿命が異なります。
B60: ＊3 年間電気代は、電力料金22円/kWh（税込）で試算しています（一般社団法人日本照明工業会 技術資料114-1996による）。
B61: ＊4 当社白熱電球60W形（LW100V54W、定格消費電力54W、全光束810lm、定格寿命1,000時間）で試算(2011年12月販売終了）。
B62: ＊5 当社LED電球60W形（LDA7D-G/60E、定格消費電力7.0W、全光束810lm、定格寿命40,000時間）で試算。
B65: =TOP!B61 -> 2017年 3月版

Sheet 7LGS60F
G5: 形式 | L5: LDA7L-G/S/60F
L13: オープン価格★
G14: 光の広がり | L14: 全方向タイプ（配光角２６０度）
G15: 光色 | L15: 電球色
G16: 全光束（lm） | L16: 810
B17: ●電球60W形相当の明るさ | G17: 明るさの目安*1 | L17: 白熱電球60W形相当
B18: ●配光角260度で全方向に | G18: 定格消費電力（W） | L18: 7.2
B19: 広がる光 | G19: エネルギー消費効率（lm/W） | L19: =ROUNDDOWN(L16/L18,1) -> 112.5
B20: ●断熱材施工器具対応※1 | G20: 質量（g） | L20: 80
B21: ●密閉形器具にも対応※1 | G21: 定格寿命（時間）*2 | L21: 40000
B22: ●屋外用器具にも対応※2 | G22: 寸法 （mm） | J22: 外径 | L22: 60
J23: 全長 | L23: 112
G24: 断熱材施工器具対応 | L24: ○（保護機能付き）※1
G25: 密閉形器具対応 | L25: ○（保護機能付き）※1
G26: ・ 調光（明るさが調整できる）機能の付いた照明器具には使用できません（100％点灯でも使用不可）。
G27: ・ 街路灯には使用できません。
B28: ※1 器具内の温度や周囲温度が高くなると保護回路が働き電力を抑えるため、明るさが低下する場合があります。
B29: ※2 防湿･防雨形の密閉形器具で使用すること、直射日光があたらない場所で使用すること、屋内配線に接続された器具で使用すること。
B31: 白熱電球とＬＥＤ電球の電気代の試算ができます。目安としてご活用ください。
B32: ■試算条件を入力ください。
C33: ①使用灯数は？ | K33: 1 | N33: 灯 | Q33: 電力料金単価（税込）*3
C35: ②年間使用日数は？ | K35: 365 | N35: 日 | R35: 22 | T35: 円/kWh
C37: ③1日の点灯時間は？ | K37: 6 | N37: 時間/日 | Q37: に設定しています。
C39: ④年間点灯時間 | K39: =K35*K37 -> 2190 | N39: 時間/年 | Q39: ＊ 任意に変更ができます。
C41: ⑤ＬＥＤ電球の購入価格（税込）は？ | N41: 円/灯 | P41: 合計 | Q41: =K33*K41 -> 0 | T41: 円
D42: ＊ イニシャルコストの回収期間を試算します。
B43: ■試算結果
B44: ●年間電気代*3 | J44: 年間電気代 | T44: 低減効果
C46: ◆白熱電球60W形 | H46: 約 | I46: =0.054*K33*K35*K37*R35 -> 2601.72 | L46: 円 | T46: 基準
C47: （60Wタイプ54Wで試算*4）
C49: ◆ＬＥＤ電球60W形 | H49: 約 | I49: =$L$18*K33*K35*K37*R35/1000 -> 346.896 | L49: 円 | T49: =(I46-I49)/I46 -> 0.8666666667
C50: （60Wタイプ7.2Wで試算*5）
H51: 白熱電球60W形と比べ 約 | I51: =I46-I49 -> 2254.824 | L51: 円お得です！（年間電気代の差額）
B53: ●回収期間 | H53: イニシャルコストを 約 | I53: =IF(K41=0,"",ROUNDUP(K41*K33/(I46-I49),1)) ->  | L53: 年で回収できます！
D54: ＊ イニシャルコストの回収期間は、ＬＥＤ電球の購入価格を年間電気代の差額で割り試算しています。
D55: 試算条件によっては、「一般社団法人日本照明工業会ガイド111」 による適正交換時期や耐用の限度を超える場合が
D56: ありますが、寿命を保証するものではありませんので、予めご了承ください。
B58: ＊1 明るさの目安は、JIS C 8158 : 2012 附属書B によります。
B59: ＊2 定格寿命は、LED単体で定められた温度設計に基づいて算出した設計寿命であり、使用環境・使用方法により寿命が異なります。
B60: ＊3 年間電気代は、電力料金22円/kWh（税込）で試算しています（一般社団法人日本照明工業会 技術資料114-1996による）。
B61: ＊4 当社白熱電球60W形（LW100V54W、定格消費電力54W、全光束810lm、定格寿命1,000時間）で試算(2011年12月販売終了）。
B62: ＊5 当社LED電球60W形（LDA8L-G/60E、定格消費電力7.8W、全光束810lm、定格寿命40,000時間）で試算。
B65: =TOP!B61 -> 2017年 3月版

Sheet 7DGD60C
G5: 形式 | L5: LDA7D-G/D/60C
L13: オープン価格★ 屋内用
G14: 光の広がり | L14: 広配光タイプ
G15: 光色 | L15: 昼光色
G16: 全光束（lm） | L16: 810
B17: ●電球60W形相当の明るさ | G17: 明るさの目安*1 | L17: 白熱電球60W形相当
B18: ●調光器対応 | G18: 定格消費電力（W） | L18: 7.3
B19: ●電球のような広がる光 | G19: エネルギー消費効率（lm/W） | L19: =ROUNDDOWN(L16/L18,1) -> 110.9
B20: ●密閉形器具対応 | G20: 質量（g） | L20: 125
B21: ●定格寿命40,000時間 | G21: 定格寿命（時間）*2 | L21: 40000
G22: 寸法 （mm） | J22: 外径 | L22: 60
J23: 全長 | L23: 112
G24: 断熱材施工器具対応 | L24: ×
G25: 密閉形器具対応 | L25: ○（保護機能付き）※1
G26: ＊ 断熱材施工器具や屋外では使用できません。
B28: ※1 器具内の温度や周囲温度が高くなると保護回路が働き電力を抑えるため、明るさが低下する場合があります。
B30: 白熱電球とＬＥＤ電球の電気代の試算ができます。目安としてご活用ください。
B31: ■試算条件を入力ください。
C32: ①使用灯数は？ | K32: 1 | N32: 灯 | Q32: 電力料金単価（税込）*3
C34: ②年間使用日数は？ | K34: 365 | N34: 日 | R34: 22 | T34: 円/kWh
C36: ③1日の点灯時間は？ | K36: 6 | N36: 時間/日 | Q36: に設定しています。
C38: ④年間点灯時間 | K38: =K34*K36 -> 2190 | N38: 時間/年 | Q38: ＊ 任意に変更ができます。
C40: ⑤ＬＥＤ電球の購入価格（税込）は？ | N40: 円/灯 | P40: 合計 | Q40: =K32*K40 -> 0 | T40: 円
D41: ＊ イニシャルコストの回収期間を試算します。
B42: ■試算結果
B43: ●年間電気代*3 | J43: 年間電気代 | T43: 低減効果
C45: ◆白熱電球60W形 | H45: 約 | I45: =0.054*K32*K34*K36*R34 -> 2601.72 | L45: 円 | T45: 基準
C46: （60Wタイプ54Wで試算*4）
C48: ◆ＬＥＤ電球60W形 | H48: 約 | I48: =0.0073*K32*K34*K36*R34 -> 351.714 | L48: 円 | T48: =(I45-I48)/I45 -> 0.8648148148
C49: （60Wタイプ7.3Wで試算*5）
H50: 白熱電球60W形と比べ 約 | I50: =I45-I48 -> 2250.006 | L50: 円お得です！（年間電気代の差額）
B52: ●回収期間 | H52: イニシャルコストを 約 | I52: =IF(K40=0,"",ROUNDUP(K40*K32/(I45-I48),1)) ->  | L52: 年で回収できます！
D53: ＊ イニシャルコストの回収期間は、ＬＥＤ電球の購入価格を年間電気代の差額で割り試算しています。
D54: 試算条件によっては、「一般社団法人日本照明工業会ガイド111」 による適正交換時期や耐用の限度を超える場合が
D55: ありますが、寿命を保証するものではありませんので、予めご了承ください。
B57: ＊1 明るさの目安は、JIS C 8158 : 2012 附属書B によります。
B58: ＊2 定格寿命は、LED単体で定められた温度設計に基づいて算出した設計寿命であり、使用環境・使用方法により寿命が異なります。
B59: ＊3 年間電気代は、電力料金22円/kWh（税込）で試算しています（一般社団法人日本照明工業会 技術資料114-1996による）。
B60: ＊4 当社白熱電球60W形（LW100V54W、定格消費電力54W、全光束810lm、定格寿命1,000時間）で試算(2011年12月販売終了）。
B61: ＊5 当社LED電球60W形（LDA7D-G/D/60C、定格消費電力7.3W、全光束810lm、定格寿命40,000時間）で試算。
B64: =TOP!B61 -> 2017年 3月版

Sheet 9LGD60C
G5: 形式 | L5: LDA9L-G/D/60C
L13: オープン価格★ 屋内用
G14: 光の広がり | L14: 広配光タイプ
G15: 光色 | L15: 電球色
G16: 全光束（lm） | L16: 810
B17: ●電球60W形相当の明るさ | G17: 明るさの目安*1 | L17: 白熱電球60W形相当
B18: ●調光器対応 | G18: 定格消費電力（W） | L18: 9
B19: ●電球のような広がる光 | G19: エネルギー消費効率（lm/W） | L19: =ROUNDDOWN(L16/L18,1) -> 90
B20: ●密閉形器具対応 | G20: 質量（g） | L20: 125
B21: ●定格寿命40,000時間 | G21: 定格寿命（時間）*2 | L21: 40000
G22: 寸法 （mm） | J22: 外径 | L22: 60
J23: 全長 | L23: 112
G24: 断熱材施工器具対応 | L24: ×
G25: 密閉形器具対応 | L25: ○（保護機能付き）※1
G26: ＊ 断熱材施工器具や屋外では使用できません。
B28: ※1 器具内の温度や周囲温度が高くなると保護回路が働き電力を抑えるため、明るさが低下する場合があります。
B30: 白熱電球とＬＥＤ電球の電気代の試算ができます。目安としてご活用ください。
B31: ■試算条件を入力ください。
C32: ①使用灯数は？ | K32: 1 | N32: 灯 | Q32: 電力料金単価（税込）*3
C34: ②年間使用日数は？ | K34: 365 | N34: 日 | R34: 22 | T34: 円/kWh
C36: ③1日の点灯時間は？ | K36: 6 | N36: 時間/日 | Q36: に設定しています。
C38: ④年間点灯時間 | K38: =K34*K36 -> 2190 | N38: 時間/年 | Q38: ＊ 任意に変更ができます。
C40: ⑤ＬＥＤ電球の購入価格（税込）は？ | N40: 円/灯 | P40: 合計 | Q40: =K32*K40 -> 0 | T40: 円
D41: ＊ イニシャルコストの回収期間を試算します。
B42: ■試算結果
B43: ●年間電気代*3 | J43: 年間電気代 | T43: 低減効果
C45: ◆白熱電球60W形 | H45: 約 | I45: =0.054*K32*K34*K36*R34 -> 2601.72 | L45: 円 | T45: 基準
C46: （60Wタイプ54Wで試算*4）
C48: ◆ＬＥＤ電球60W形 | H48: 約 | I48: =0.009*K32*K34*K36*R34 -> 433.62 | L48: 円 | T48: =(I45-I48)/I45 -> 0.8333333333
C49: （60Wタイプ9.0Wで試算*5）
H50: 白熱電球60W形と比べ 約 | I50: =I45-I48 -> 2168.1 | L50: 円お得です！（年間電気代の差額）
B52: ●回収期間 | H52: イニシャルコストを 約 | I52: =IF(K40=0,"",ROUNDUP(K40*K32/(I45-I48),1)) ->  | L52: 年で回収できます！
D53: ＊ イニシャルコストの回収期間は、ＬＥＤ電球の購入価格を年間電気代の差額で割り試算しています。
D54: 試算条件によっては、「一般社団法人日本照明工業会ガイド111」 による適正交換時期や耐用の限度を超える場合が
D55: ありますが、寿命を保証するものではありませんので、予めご了承ください。
B57: ＊1 明るさの目安は、JIS C 8158 : 2012 附属書B によります。
B58: ＊2 定格寿命は、LED単体で定められた温度設計に基づいて算出した設計寿命であり、使用環境・使用方法により寿命が異なります。
B59: ＊3 年間電気代は、電力料金22円/kWh（税込）で試算しています（一般社団法人日本照明工業会 技術資料114-1996による）。
B60: ＊4 当社白熱電球60W形（LW100V54W、定格消費電力54W、全光束810lm、定格寿命1,000時間）で試算(2011年12月販売終了）。
B61: ＊5 当社LED電球60W形（LDA9L-G/D/60C、定格消費電力9.0W、全光束810lm、定格寿命40,000時間）で試算。
B64: =TOP!B61 -> 2017年 3月版 | W64: ※1 器具内の温度や周囲温度が高くなると保護回路が働き電力を抑えるため、明るさが低下する場合があります。

Sheet 4DG40F
G5: 形式 | L5: LDA4D-G/40F
L13: オープン価格★ 屋内用
G14: 光の広がり | L14: 広配光タイプ
G15: 光色 | L15: 昼光色
G16: 全光束（lm） | L16: 485
B17: ●電球40W形相当の明るさ | G17: 明るさの目安*1 | L17: 白熱電球40W形相当
B18: ●広い範囲に光が広がる | G18: 定格消費電力（W） | L18: 4.4
B19: 広配光タイプ | G19: エネルギー消費効率（lm/W） | L19: =ROUNDDOWN(L16/L18,1) -> 110.2
B20: ●密閉形器具対応 | G20: 質量（g） | L20: 95
B21: ●定格寿命40,000時間 | G21: 定格寿命（時間）*2 | L21: 40000
G22: 寸法 （mm） | J22: 外径 | L22: 60
J23: 全長 | L23: 112
G24: 断熱材施工器具対応 | L24: ×
G25: 密閉形器具対応 | L25: ○（保護機能付き）※1
G26: ・ 調光（明るさが調整できる）機能の付いた照明器具には使用できません（100％点灯でも使用不可）。
G27: ・ 断熱材施工器具や屋外では使用できません。
B28: ※1 器具内の温度や周囲温度が高くなると保護回路が働き電力を抑えるため、明るさが低下する場合があります。
B30: 白熱電球とＬＥＤ電球の電気代の試算ができます。目安としてご活用ください。
B31: ■試算条件を入力ください。
C32: ①使用灯数は？ | K32: 1 | N32: 灯 | Q32: 電力料金単価（税込）*3
C34: ②年間使用日数は？ | K34: 365 | N34: 日 | R34: 22 | T34: 円/kWh
C36: ③1日の点灯時間は？ | K36: 6 | N36: 時間/日 | Q36: に設定しています。
C38: ④年間点灯時間 | K38: =K34*K36 -> 2190 | N38: 時間/年 | Q38: ＊ 任意に変更ができます。
C40: ⑤ＬＥＤ電球の購入価格（税込）は？ | N40: 円/灯 | P40: 合計 | Q40: =K32*K40 -> 0 | T40: 円
D41: ＊ イニシャルコストの回収期間を試算します。
B42: ■試算結果
B43: ●年間電気代*3 | J43: 年間電気代 | T43: 低減効果
C45: ◆白熱電球40W形 | H45: 約 | I45: =0.036*K32*K34*K36*R34 -> 1734.48 | L45: 円 | T45: 基準
C46: （40Wタイプ36Wで試算*4）
C48: ◆ＬＥＤ電球40W形 | H48: 約 | I48: =$L$18*K32*K34*K36*R34/1000 -> 211.992 | L48: 円 | T48: =(I45-I48)/I45 -> 0.8777777778
C49: （40Wタイプ4.4Wで試算*5）
H50: 白熱電球40W形と比べ 約 | I50: =I45-I48 -> 1522.488 | L50: 円お得です！（年間電気代の差額）
B52: ●回収期間 | H52: イニシャルコストを 約 | I52: =IF(K40=0,"",ROUNDUP(K40*K32/(I45-I48),1)) ->  | L52: 年で回収できます！
D53: ＊ イニシャルコストの回収期間は、ＬＥＤ電球の購入価格を年間電気代の差額で割り試算しています。
D54: 試算条件によっては、「一般社団法人日本照明工業会ガイド111」 による適正交換時期や耐用の限度を超える場合が
D55: ありますが、寿命を保証するものではありませんので、予めご了承ください。
B57: ＊1 明るさの目安は、JIS C 8158 : 2012 附属書B によります。
B58: ＊2 定格寿命は、LED単体で定められた温度設計に基づいて算出した設計寿命であり、使用環境・使用方法により寿命が異なります。
B59: ＊3 年間電気代は、電力料金22円/kWh（税込）で試算しています（一般社団法人日本照明工業会 技術資料114-1996による）。
B60: ＊4 当社白熱電球40W形（LW100V36W、定格消費電力36W、全光束485lm、定格寿命1,000時間）で試算(2011年12月販売終了）。
B61: ＊5 当社LED電球40W形（LDA6D-G/40A、定格消費電力6.0W、全光束485lm、定格寿命40,000時間）で試算。
B64: =TOP!B61 -> 2017年 3月版

Sheet 5LG40F
G5: 形式 | L5: LDA5L-G/40F
L13: オープン価格★ 屋内用
G14: 光の広がり | L14: 広配光タイプ
G15: 光色 | L15: 電球色
G16: 全光束（lm） | L16: 485
B17: ●電球40W形相当の明るさ | G17: 明るさの目安*1 | L17: 白熱電球40W形相当
B18: ●広い範囲に光が広がる | G18: 定格消費電力（W） | L18: 4.9
B19: 広配光タイプ | G19: エネルギー消費効率（lm/W） | L19: =ROUNDDOWN(L16/L18,1) -> 98.9
B20: ●密閉形器具対応 | G20: 質量（g） | L20: 95
B21: ●定格寿命40,000時間 | G21: 定格寿命（時間）*2 | L21: 40000
G22: 寸法 （mm） | J22: 外径 | L22: 60
J23: 全長 | L23: 112
G24: 断熱材施工器具対応 | L24: ×
G25: 密閉形器具対応 | L25: ○（保護機能付き）※1
G26: ･ 調光（明るさが調整できる）機能の付いた照明器具には使用できません（100％点灯でも使用不可）。
G27: ・ 断熱材施工器具や屋外では使用できません。
B28: ※1 器具内の温度や周囲温度が高くなると保護回路が働き電力を抑えるため、明るさが低下する場合があります。
B30: 白熱電球とＬＥＤ電球の電気代の試算ができます。目安としてご活用ください。
B31: ■試算条件を入力ください。
C32: ①使用灯数は？ | K32: 1 | N32: 灯 | Q32: 電力料金単価（税込）*3
C34: ②年間使用日数は？ | K34: 365 | N34: 日 | R34: 22 | T34: 円/kWh
C36: ③1日の点灯時間は？ | K36: 6 | N36: 時間/日 | Q36: に設定しています。
C38: ④年間点灯時間 | K38: =K34*K36 -> 2190 | N38: 時間/年 | Q38: ＊ 任意に変更ができます。
C40: ⑤ＬＥＤ電球の購入価格（税込）は？ | N40: 円/灯 | P40: 合計 | Q40: =K32*K40 -> 0 | T40: 円
D41: ＊ イニシャルコストの回収期間を試算します。
B42: ■試算結果
B43: ●年間電気代*3 | J43: 年間電気代 | T43: 低減効果
C45: ◆白熱電球40W形 | H45: 約 | I45: =0.036*K32*K34*K36*R34 -> 1734.48 | L45: 円 | T45: 基準
C46: （40Wタイプ36Wで試算*4）
C48: ◆ＬＥＤ電球40W形 | H48: 約 | I48: =$L$18*K32*K34*K36*R34/1000 -> 236.082 | L48: 円 | T48: =(I45-I48)/I45 -> 0.8638888889
C49: （40Wタイプ4.9Wで試算*5）
H50: 白熱電球40W形と比べ 約 | I50: =I45-I48 -> 1498.398 | L50: 円お得です！（年間電気代の差額）
B52: ●回収期間 | H52: イニシャルコストを 約 | I52: =IF(K40=0,"",ROUNDUP(K40*K32/(I45-I48),1)) ->  | L52: 年で回収できます！
D53: ＊ イニシャルコストの回収期間は、ＬＥＤ電球の購入価格を年間電気代の差額で割り試算しています。
D54: 試算条件によっては、「一般社団法人日本照明工業会ガイド111」 による適正交換時期や耐用の限度を超える場合が
D55: ありますが、寿命を保証するものではありませんので、予めご了承ください。
B57: ＊1 明るさの目安は、JIS C 8158 : 2012 附属書B によります。
B58: ＊2 定格寿命は、LED単体で定められた温度設計に基づいて算出した設計寿命であり、使用環境・使用方法により寿命が異なります。
B59: ＊3 年間電気代は、電力料金22円/kWh（税込）で試算しています（一般社団法人日本照明工業会 技術資料114-1996による）。
B60: ＊4 当社白熱電球40W形（LW100V36W、定格消費電力36W、全光束485lm、定格寿命1,000時間）で試算(2011年12月販売終了）。
B61: ＊5 当社LED電球40W形（LDA7L-G/40A、定格消費電力6.9W、全光束485lm、定格寿命40,000時間）で試算。
B64: =TOP!B61 -> 2017年 3月版

Sheet 11DG100E
G5: 形式 | L5: LDG11D-G/100E
L13: オープン価格★ 屋内用
G14: 光の広がり | L14: 広配光タイプ
G15: 光色 | L15: 昼光色
G16: 全光束（lm） | L16: 1380
B17: ●ボール電球100W形相当 | G17: 明るさの目安*1 | L17: ボール電球100W形相当
B18: の明るさ | G18: 定格消費電力（W） | L18: 10.9
B19: ●電球のような広がる光 | G19: エネルギー消費効率（lm/W） | L19: =ROUNDDOWN(L16/L18,1) -> 126.6
B20: ●密閉形器具対応 | G20: 質量（g） | L20: 190
B21: ●定格寿命40,000時間 | G21: 定格寿命（時間）*2 | L21: 40000
G22: 寸法 （mm） | J22: 外径 | L22: 95
J23: 全長 | L23: 127
G24: 断熱材施工器具対応 | L24: ×
G25: 密閉形器具対応 | L25: ○（保護機能付き）※1
G26: ＊ 調光（明るさが調整できる）機能の付いた照明器具には使用できません（100％点灯でも使用不可）。
G27: ＊ 断熱材施工器具や屋外では使用できません。
B28: ※1 器具内の温度や周囲温度が高くなると保護回路が働き電力を抑えるため、明るさが低下する場合があります。
B30: ボール電球とＬＥＤ電球の電気代の試算ができます。目安としてご活用ください。
B31: ■試算条件を入力ください。
C32: ①使用灯数は？ | K32: 1 | N32: 灯 | Q32: 電力料金単価（税込）*3
C34: ②年間使用日数は？ | K34: 365 | N34: 日 | R34: 22 | T34: 円/kWh
C36: ③1日の点灯時間は？ | K36: 6 | N36: 時間/日 | Q36: に設定しています。
C38: ④年間点灯時間 | K38: =K34*K36 -> 2190 | N38: 時間/年 | Q38: ＊ 任意に変更ができます。
C40: ⑤ＬＥＤ電球の購入価格（税込）は？ | N40: 円/灯 | P40: 合計 | Q40: =K32*K40 -> 0 | T40: 円
D41: ＊ イニシャルコストの回収期間を試算します。
B42: ■試算結果
B43: ●年間電気代*3 | J43: 年間電気代 | T43: 低減効果
C45: ◆ボール電球100W形 | H45: 約 | I45: =0.095*K32*K34*K36*R34 -> 4577.1 | L45: 円 | T45: 基準
C46: （100Wタイプ95Wで試算*4）
C48: ◆ＬＥＤ電球100W形 | H48: 約 | I48: =$L$18*K32*K34*K36*R34/1000 -> 525.162 | L48: 円 | T48: =(I45-I48)/I45 -> 0.8852631579
C49: （100Wタイプ10.9Wで試算*5）
H50: ボール電球100W形と比べ 約 | I50: =I45-I48 -> 4051.938 | L50: 円お得です！（年間電気代の差額）
B52: ●回収期間 | H52: イニシャルコストを 約 | I52: =IF(K40=0,"",ROUNDUP(K40*K32/(I45-I48),1)) ->  | L52: 年で回収できます！
D53: ＊ イニシャルコストの回収期間は、ＬＥＤ電球の購入価格を年間電気代の差額で割り試算しています。
D54: 試算条件によっては、「一般社団法人日本照明工業会ガイド111」 による適正交換時期や耐用の限度を超える場合が
D55: ありますが、寿命を保証するものではありませんので、予めご了承ください。
B57: ＊1 明るさの目安は、JIS C 8158 : 2012 附属書B によります。
B58: ＊2 定格寿命は、LED単体で定められた温度設計に基づいて算出した設計寿命であり、使用環境・使用方法により寿命が異なります。
B59: ＊3 年間電気代は、電力料金22円/kWh（税込）で試算しています（一般社団法人日本照明工業会 技術資料114-1996による）。
B60: ＊4 当社ボール電球100W形（GW100V95W95、定格消費電力95W、全光束1,340lm、定格寿命2,000時間）で試算(2011年12月販売終了）。
B61: ＊5 当社LED電球100W形（LDG11D-G/100E、定格消費電力10.9W、全光束1,380lm、定格寿命40,000時間）で試算。
B64: =TOP!B61 -> 2017年 3月版

Sheet 13LG100E
G5: 形式 | L5: LDG13L-G/100E
L13: オープン価格★ 屋内用
G14: 光の広がり | L14: 広配光タイプ
G15: 光色 | L15: 電球色
G16: 全光束（lm） | L16: 1380
B17: ●ボール電球100W形相当 | G17: 明るさの目安*1 | L17: ボール電球100W形相当
B18: の明るさ | G18: 定格消費電力（W） | L18: 12.6
B19: ●電球のような広がる光 | G19: エネルギー消費効率（lm/W） | L19: =ROUNDDOWN(L16/L18,1) -> 109.5
B20: ●密閉形器具対応 | G20: 質量（g） | L20: 200
B21: ●定格寿命40,000時間 | G21: 定格寿命（時間）*2 | L21: 40000
G22: 寸法 （mm） | J22: 外径 | L22: 95
J23: 全長 | L23: 127
G24: 断熱材施工器具対応 | L24: ×
G25: 密閉形器具対応 | L25: ○（保護機能付き）※1
G26: ＊ 調光（明るさが調整できる）機能の付いた照明器具には使用できません（100％点灯でも使用不可）。
G27: ＊ 断熱材施工器具や屋外では使用できません。
B28: ※1 器具内の温度や周囲温度が高くなると保護回路が働き電力を抑えるため、明るさが低下する場合があります。
B30: ボール電球とＬＥＤ電球の電気代の試算ができます。目安としてご活用ください。
B31: ■試算条件を入力ください。
C32: ①使用灯数は？ | K32: 1 | N32: 灯 | Q32: 電力料金単価（税込）*3
C34: ②年間使用日数は？ | K34: 365 | N34: 日 | R34: 22 | T34: 円/kWh
C36: ③1日の点灯時間は？ | K36: 6 | N36: 時間/日 | Q36: に設定しています。
C38: ④年間点灯時間 | K38: =K34*K36 -> 2190 | N38: 時間/年 | Q38: ＊ 任意に変更ができます。
C40: ⑤ＬＥＤ電球の購入価格（税込）は？ | N40: 円/灯 | P40: 合計 | Q40: =K32*K40 -> 0 | T40: 円
D41: ＊ イニシャルコストの回収期間を試算します。
B42: ■試算結果
B43: ●年間電気代*3 | J43: 年間電気代 | T43: 低減効果
C45: ◆ボール電球100W形 | H45: 約 | I45: =0.095*K32*K34*K36*R34 -> 4577.1 | L45: 円 | T45: 基準
C46: （100Wタイプ95Wで試算*4）
C48: ◆ＬＥＤ電球100W形 | H48: 約 | I48: =$L$18*K32*K34*K36*R34/1000 -> 607.068 | L48: 円 | T48: =(I45-I48)/I45 -> 0.8673684211
C49: （100Wタイプ12.6Wで試算*5）
H50: ボール電球100W形と比べ 約 | I50: =I45-I48 -> 3970.032 | L50: 円お得です！（年間電気代の差額）
B52: ●回収期間 | H52: イニシャルコストを 約 | I52: =IF(K40=0,"",ROUNDUP(K40*K32/(I45-I48),1)) ->  | L52: 年で回収できます！
D53: ＊ イニシャルコストの回収期間は、ＬＥＤ電球の購入価格を年間電気代の差額で割り試算しています。
D54: 試算条件によっては、「一般社団法人日本照明工業会ガイド111」 による適正交換時期や耐用の限度を超える場合が
D55: ありますが、寿命を保証するものではありませんので、予めご了承ください。
B57: ＊1 明るさの目安は、JIS C 8158 : 2012 附属書B によります。
B58: ＊2 定格寿命は、LED単体で定められた温度設計に基づいて算出した設計寿命であり、使用環境・使用方法により寿命が異なります。
B59: ＊3 年間電気代は、電力料金22円/kWh（税込）で試算しています（一般社団法人日本照明工業会 技術資料114-1996による）。
B60: ＊4 当社ボール電球100W形（GW100V95W95、定格消費電力95W、全光束1,340lm、定格寿命2,000時間）で試算(2011年12月販売終了）。
B61: ＊5 当社LED電球100W形（LDG13L-G/100E、定格消費電力12.6W、全光束1,380lm、定格寿命40,000時間）で試算。
B64: =TOP!B61 -> 2017年 3月版

Sheet 8DG60HE
G5: 形式 | L5: LDG8D-G/60HE
L13: オープン価格★ 屋内用
G14: 光の広がり | L14: 広配光タイプ
G15: 光色 | L15: 昼光色
G16: 全光束（lm） | L16: 840
B17: ●ボール電球60W形相当 | G17: 明るさの目安*1 | L17: ボール電球60W形相当
B18: の明るさ | G18: 定格消費電力（W） | L18: 7.6
B19: ●電球のような広がる光 | G19: エネルギー消費効率（lm/W） | L19: =ROUNDDOWN(L16/L18,1) -> 110.5
B20: ●密閉形器具対応 | G20: 質量（g） | L20: 190
B21: ●定格寿命40,000時間 | G21: 定格寿命（時間）*2 | L21: 40000
G22: 寸法 （mm） | J22: 外径 | L22: 95
J23: 全長 | L23: 127
G24: 断熱材施工器具対応 | L24: ×
G25: 密閉形器具対応 | L25: ○（保護機能付き）※1
G26: ＊ 調光（明るさが調整できる）機能の付いた照明器具には使用できません（100％点灯でも使用不可）。
G27: ＊ 断熱材施工器具や屋外では使用できません。
B28: ※1 器具内の温度や周囲温度が高くなると保護回路が働き電力を抑えるため、明るさが低下する場合があります。
B30: ボール電球とＬＥＤ電球の電気代の試算ができます。目安としてご活用ください。
B31: ■試算条件を入力ください。
C32: ①使用灯数は？ | K32: 1 | N32: 灯 | Q32: 電力料金単価（税込）*3
C34: ②年間使用日数は？ | K34: 365 | N34: 日 | R34: 22 | T34: 円/kWh
C36: ③1日の点灯時間は？ | K36: 6 | N36: 時間/日 | Q36: に設定しています。
C38: ④年間点灯時間 | K38: =K34*K36 -> 2190 | N38: 時間/年 | Q38: ＊ 任意に変更ができます。
C40: ⑤ＬＥＤ電球の購入価格（税込）は？ | N40: 円/灯 | P40: 合計 | Q40: =K32*K40 -> 0 | T40: 円
D41: ＊ イニシャルコストの回収期間を試算します。
B42: ■試算結果
B43: ●年間電気代*3 | J43: 年間電気代 | T43: 低減効果
C45: ◆ボール電球60W形 | H45: 約 | I45: =0.057*K32*K34*K36*R34 -> 2746.26 | L45: 円 | T45: 基準
C46: （60Wタイプ57Wで試算*4）
C48: ◆ＬＥＤ電球60W形 | H48: 約 | I48: =$L$18*K32*K34*K36*R34/1000 -> 366.168 | L48: 円 | T48: =(I45-I48)/I45 -> 0.8666666667
C49: （60Wタイプ7.6Wで試算*5）
H50: ボール電球60W形と比べ 約 | I50: =I45-I48 -> 2380.092 | L50: 円お得です！（年間電気代の差額）
B52: ●回収期間 | H52: イニシャルコストを 約 | I52: =IF(K40=0,"",ROUNDUP(K40*K32/(I45-I48),1)) ->  | L52: 年で回収できます！
D53: ＊ イニシャルコストの回収期間は、ＬＥＤ電球の購入価格を年間電気代の差額で割り試算しています。
D54: 試算条件によっては、「一般社団法人日本照明工業会ガイド111」 による適正交換時期や耐用の限度を超える場合が
D55: ありますが、寿命を保証するものではありませんので、予めご了承ください。
B57: ＊1 明るさの目安は、JIS C 8158 : 2012 附属書B によります。
B58: ＊2 定格寿命は、LED単体で定められた温度設計に基づいて算出した設計寿命であり、使用環境・使用方法により寿命が異なります。
B59: ＊3 年間電気代は、電力料金22円/kWh（税込）で試算しています（一般社団法人日本照明工業会 技術資料114-1996による）。
B60: ＊4 当社ボール電球60W形（GW100V57W95、定格消費電力57W、全光束725lm、定格寿命2,000時間）で試算(2011年12月販売終了）。
B61: ＊5 当社LED電球60W形（LDG8D-G/80HC、定格消費電力7.6W、全光束840lm、定格寿命40,000時間）で試算。
B64: =TOP!B61 -> 2017年 3月版

Sheet 8LG60HE
G5: 形式 | L5: LDG8L-G/60HE
L13: オープン価格★ 屋内用
G14: 光の広がり | L14: 広配光タイプ
G15: 光色 | L15: 電球色
G16: 全光束（lm） | L16: 840
B17: ●ボール電球60W形相当 | G17: 明るさの目安*1 | L17: ボール電球60W形相当
B18: の明るさ | G18: 定格消費電力（W） | L18: 8.3
B19: ●電球のような広がる光 | G19: エネルギー消費効率（lm/W） | L19: =ROUNDDOWN(L16/L18,1) -> 101.2
B20: ●密閉形器具対応 | G20: 質量（g） | L20: 190
B21: ●定格寿命40,000時間 | G21: 定格寿命（時間）*2 | L21: 40000
G22: 寸法 （mm） | J22: 外径 | L22: 95
J23: 全長 | L23: 127
G24: 断熱材施工器具対応 | L24: ×
G25: 密閉形器具対応 | L25: ○（保護機能付き）※1
G26: ＊ 調光（明るさが調整できる）機能の付いた照明器具には使用できません（100％点灯でも使用不可）。
G27: ＊ 断熱材施工器具や屋外では使用できません。
B28: ※1 器具内の温度や周囲温度が高くなると保護回路が働き電力を抑えるため、明るさが低下する場合があります。
B30: ボール電球とＬＥＤ電球の電気代の試算ができます。目安としてご活用ください。
B31: ■試算条件を入力ください。
C32: ①使用灯数は？ | K32: 1 | N32: 灯 | Q32: 電力料金単価（税込）*3
C34: ②年間使用日数は？ | K34: 365 | N34: 日 | R34: 22 | T34: 円/kWh
C36: ③1日の点灯時間は？ | K36: 6 | N36: 時間/日 | Q36: に設定しています。
C38: ④年間点灯時間 | K38: =K34*K36 -> 2190 | N38: 時間/年 | Q38: ＊ 任意に変更ができます。
C40: ⑤ＬＥＤ電球の購入価格（税込）は？ | N40: 円/灯 | P40: 合計 | Q40: =K32*K40 -> 0 | T40: 円
D41: ＊ イニシャルコストの回収期間を試算します。
B42: ■試算結果
B43: ●年間電気代*3 | J43: 年間電気代 | T43: 低減効果
C45: ◆ボール電球60W形 | H45: 約 | I45: =0.057*K32*K34*K36*R34 -> 2746.26 | L45: 円 | T45: 基準
C46: （60Wタイプ57Wで試算*4）
C48: ◆ＬＥＤ電球60W形 | H48: 約 | I48: =$L$18*K32*K34*K36*R34/1000 -> 399.894 | L48: 円 | T48: =(I45-I48)/I45 -> 0.8543859649
C49: （60Wタイプ8.3Wで試算*5）
H50: ボール電球60W形と比べ 約 | I50: =I45-I48 -> 2346.366 | L50: 円お得です！（年間電気代の差額）
B52: ●回収期間 | H52: イニシャルコストを 約 | I52: =IF(K40=0,"",ROUNDUP(K40*K32/(I45-I48),1)) ->  | L52: 年で回収できます！
D53: ＊ イニシャルコストの回収期間は、ＬＥＤ電球の購入価格を年間電気代の差額で割り試算しています。
D54: 試算条件によっては、「一般社団法人日本照明工業会ガイド111」 による適正交換時期や耐用の限度を超える場合が
D55: ありますが、寿命を保証するものではありませんので、予めご了承ください。
B57: ＊1 明るさの目安は、JIS C 8158 : 2012 附属書B によります。
B58: ＊2 定格寿命は、LED単体で定められた温度設計に基づいて算出した設計寿命であり、使用環境・使用方法により寿命が異なります。
B59: ＊3 年間電気代は、電力料金22円/kWh（税込）で試算しています（一般社団法人日本照明工業会 技術資料114-1996による）。
B60: ＊4 当社ボール電球60W形（GW100V57W95、定格消費電力57W、全光束725lm、定格寿命2,000時間）で試算(2011年12月販売終了）。
B61: ＊5 当社LED電球60W形（LDG8L-G/60HE、定格消費電力8.3W、全光束840lm、定格寿命40,000時間）で試算。
B64: =TOP!B61 -> 2017年 3月版

Sheet 6DGE17S60E
G5: 形式 | L5: LDA6D-G-E17/S/60E
L13: オープン価格★ 屋内用
G14: 光の広がり | L14: 広配光タイプ
G15: 光色 | L15: 昼光色
G16: 全光束（lm） | L16: 760
B17: ●小形電球60W形相当 | G17: 明るさの目安*1 | L17: 小形電球60W形相当
B18: の明るさ | G18: 定格消費電力（W） | L18: 5.8
B19: ●断熱材施工器具対応 | G19: エネルギー消費効率（lm/W） | L19: =ROUNDDOWN(L16/L18,1) -> 131
B20: ●高効率で広がる光 | G20: 質量（g） | L20: 55
B21: ●密閉形器具対応 | G21: 定格寿命（時間）*2 | L21: 40000
B22: ●定格寿命40,000時間 | G22: 寸法 （mm） | J22: 外径 | L22: 40
J23: 全長 | L23: 77
G24: 断熱材施工器具対応 | L24: ○（保護機能付き）※1
G25: 密閉形器具対応 | L25: ○（保護機能付き）※1
G26: ＊ 調光（明るさが調整できる）機能の付いた照明器具には使用できません（100％点灯でも使用不可）。
G27: ＊ 屋外では使用できません。
B28: ※1 器具内の温度や周囲温度が高くなると保護回路が働き電力を抑えるため、明るさが低下する場合があります。
B30: 小形電球とＬＥＤ電球の電気代の試算ができます。目安としてご活用ください。
B31: ■試算条件を入力ください。
C32: ①使用灯数は？ | K32: 1 | N32: 灯 | Q32: 電力料金単価（税込）*3
C34: ②年間使用日数は？ | K34: 365 | N34: 日 | R34: 22 | T34: 円/kWh
C36: ③1日の点灯時間は？ | K36: 6 | N36: 時間/日 | Q36: に設定しています。
C38: ④年間点灯時間 | K38: =K34*K36 -> 2190 | N38: 時間/年 | Q38: ＊ 任意に変更ができます。
C40: ⑤ＬＥＤ電球の購入価格（税込）は？ | N40: 円/灯 | P40: 合計 | Q40: =K32*K40 -> 0 | T40: 円
D41: ＊ イニシャルコストの回収期間を試算します。
B42: ■試算結果
B43: ●年間電気代*3 | J43: 年間電気代 | T43: 低減効果
C45: ◆小形電球60W形 | H45: 約 | I45: =0.054*K32*K34*K36*R34 -> 2601.72 | L45: 円 | T45: 基準
C46: （60Wタイプ54Wで試算*4）
C48: ◆ＬＥＤ電球60W形 | H48: 約 | I48: =$L$18*K32*K34*K36*R34/1000 -> 279.444 | L48: 円 | T48: =(I45-I48)/I45 -> 0.8925925926
C49: =CONCATENATE("(60Wタイプ",L18,"Wで試算*5)") -> (60Wタイプ5.8Wで試算*5)
H50: 小形電球60W形と比べ 約 | I50: =I45-I48 -> 2322.276 | L50: 円お得です！（年間電気代の差額）
B52: ●回収期間 | H52: イニシャルコストを 約 | I52: =IF(K40=0,"",ROUNDUP(K40*K32/(I45-I48),1)) ->  | L52: 年で回収できます！
D53: ＊ イニシャルコストの回収期間は、ＬＥＤ電球の購入価格を年間電気代の差額で割り試算しています。
D54: 試算条件によっては、「一般社団法人日本照明工業会ガイド111」 による適正交換時期や耐用の限度を超える場合が
D55: ありますが、寿命を保証するものではありませんので、予めご了承ください。
B57: ＊1 明るさの目安は、JIS C 8158 : 2012 附属書B によります。
B58: ＊2 定格寿命は、LED単体で定められた温度設計に基づいて算出した設計寿命であり、使用環境・使用方法により寿命が異なります。
B59: ＊3 年間電気代は、電力料金22円/kWh（税込）で試算しています（一般社団法人日本照明工業会 技術資料114-1996による）。
B60: ＊4 当社小形電球40W形（KR100/110V54WW、定格消費電力54W、全光束760lm、定格寿命2,000時間）で試算。
B61: =CONCATENATE("＊5 当社LED電球60W形（",L5,"、定格消費電力",L18,"W、全光束",L16,"lm、定格寿命",L21,"時間）で試算。") -> ＊5 当社LED電球60W形（LDA6D-G-E17/S/60E、定格消費電力5.8W、全光束760lm、定格寿命40000時間）で試算。
B64: =TOP!B61 -> 2017年 3月版

Sheet 7LGE17S60E
G5: 形式 | L5: LDA7L-G-E17/S/60E
L13: オープン価格★ 屋内用
G14: 光の広がり | L14: 広配光タイプ
G15: 光色 | L15: 電球色
G16: 全光束（lm） | L16: 760
B17: ●小形電球60W形相当 | G17: 明るさの目安*1 | L17: 小形電球60W形相当
B18: の明るさ | G18: 定格消費電力（W） | L18: 6.7
B19: ●断熱材施工器具対応 | G19: エネルギー消費効率（lm/W） | L19: =ROUNDDOWN(L16/L18,1) -> 113.4
B20: ●高効率で広がる光 | G20: 質量（g） | L20: 55
B21: ●密閉形器具対応 | G21: 定格寿命（時間）*2 | L21: 40000
B22: ●定格寿命40,000時間 | G22: 寸法 （mm） | J22: 外径 | L22: 40
J23: 全長 | L23: 77
G24: 断熱材施工器具対応 | L24: ○（保護機能付き）※1
G25: 密閉形器具対応 | L25: ○（保護機能付き）※1
G26: ＊ 調光（明るさが調整できる）機能の付いた照明器具には使用できません（100％点灯でも使用不可）。
G27: ＊ 屋外では使用できません。
B28: ※1 器具内の温度や周囲温度が高くなると保護回路が働き電力を抑えるため、明るさが低下する場合があります。
B30: 小形電球とＬＥＤ電球の電気代の試算ができます。目安としてご活用ください。
B31: ■試算条件を入力ください。
C32: ①使用灯数は？ | K32: 1 | N32: 灯 | Q32: 電力料金単価（税込）*3
C34: ②年間使用日数は？ | K34: 365 | N34: 日 | R34: 22 | T34: 円/kWh
C36: ③1日の点灯時間は？ | K36: 6 | N36: 時間/日 | Q36: に設定しています。
C38: ④年間点灯時間 | K38: =K34*K36 -> 2190 | N38: 時間/年 | Q38: ＊ 任意に変更ができます。
C40: ⑤ＬＥＤ電球の購入価格（税込）は？ | N40: 円/灯 | P40: 合計 | Q40: =K32*K40 -> 0 | T40: 円
D41: ＊ イニシャルコストの回収期間を試算します。
B42: ■試算結果
B43: ●年間電気代*3 | J43: 年間電気代 | T43: 低減効果
C45: ◆小形電球60W形 | H45: 約 | I45: =0.054*K32*K34*K36*R34 -> 2601.72 | L45: 円 | T45: 基準
C46: （60Wタイプ54Wで試算*4）
C48: ◆ＬＥＤ電球60W形 | H48: 約 | I48: =$L$18*K32*K34*K36*R34/1000 -> 322.806 | L48: 円 | T48: =(I45-I48)/I45 -> 0.8759259259
C49: =CONCATENATE("(60Wタイプ",L18,"Wで試算*5)") -> (60Wタイプ6.7Wで試算*5)
H50: 小形電球60W形と比べ 約 | I50: =I45-I48 -> 2278.914 | L50: 円お得です！（年間電気代の差額）
B52: ●回収期間 | H52: イニシャルコストを 約 | I52: =IF(K40=0,"",ROUNDUP(K40*K32/(I45-I48),1)) ->  | L52: 年で回収できます！
D53: ＊ イニシャルコストの回収期間は、ＬＥＤ電球の購入価格を年間電気代の差額で割り試算しています。
D54: 試算条件によっては、「一般社団法人日本照明工業会ガイド111」 による適正交換時期や耐用の限度を超える場合が
D55: ありますが、寿命を保証するものではありませんので、予めご了承ください。
B57: ＊1 明るさの目安は、JIS C 8158 : 2012 附属書B によります。
B58: ＊2 定格寿命は、LED単体で定められた温度設計に基づいて算出した設計寿命であり、使用環境・使用方法により寿命が異なります。
B59: ＊3 年間電気代は、電力料金22円/kWh（税込）で試算しています（一般社団法人日本照明工業会 技術資料114-1996による）。
B60: ＊4 当社小形電球40W形（KR100/110V54WW、定格消費電力54W、全光束760lm、定格寿命2,000時間）で試算。
B61: =CONCATENATE("＊5 当社LED電球60W形（",L5,"、定格消費電力",L18,"W、全光束",L16,"lm、定格寿命",L21,"時間）で試算。") -> ＊5 当社LED電球60W形（LDA7L-G-E17/S/60E、定格消費電力6.7W、全光束760lm、定格寿命40000時間）で試算。
B64: =TOP!B61 -> 2017年 3月版

Sheet 5DGE17S50C
G5: 形式 | L5: LDA5D-G-E17/S/50C
L13: オープン価格★ 屋内用
G14: 光の広がり | L14: 広配光タイプ
G15: 光色 | L15: 昼光色
G16: 全光束（lm） | L16: 600
B17: ●小形電球50W形相当 | G17: 明るさの目安*1 | L17: 小形電球50W形相当
B18: の明るさ | G18: 定格消費電力（W） | L18: 5.2
B19: ●断熱材施工器具対応 | G19: エネルギー消費効率（lm/W） | L19: =ROUNDDOWN(L16/L18,1) -> 115.3
B20: ●高効率で広がる光 | G20: 質量（g） | L20: 45
B21: ●密閉形器具対応 | G21: 定格寿命（時間）*2 | L21: 40000
B22: ●定格寿命40,000時間 | G22: 寸法 （mm） | J22: 外径 | L22: 35
J23: 全長 | L23: 74
G24: 断熱材施工器具対応 | L24: ○（保護機能付き）※1
G25: 密閉形器具対応 | L25: ○（保護機能付き）※1
G26: ＊ 調光（明るさが調整できる）機能の付いた照明器具には使用できません（100％点灯でも使用不可）。
G27: ＊ 屋外では使用できません。
B28: ※1 器具内の温度や周囲温度が高くなると保護回路が働き電力を抑えるため、明るさが低下する場合があります。
B30: 小形電球とＬＥＤ電球の電気代の試算ができます。目安としてご活用ください。
B31: ■試算条件を入力ください。
C32: ①使用灯数は？ | K32: 1 | N32: 灯 | Q32: 電力料金単価（税込）*3
C34: ②年間使用日数は？ | K34: 365 | N34: 日 | R34: 22 | T34: 円/kWh
C36: ③1日の点灯時間は？ | K36: 6 | N36: 時間/日 | Q36: に設定しています。
C38: ④年間点灯時間 | K38: =K34*K36 -> 2190 | N38: 時間/年 | Q38: ＊ 任意に変更ができます。
C40: ⑤ＬＥＤ電球の購入価格（税込）は？ | N40: 円/灯 | P40: 合計 | Q40: =K32*K40 -> 0 | T40: 円
D41: ＊ イニシャルコストの回収期間を試算します。
B42: ■試算結果
B43: ●年間電気代*3 | J43: 年間電気代 | T43: 低減効果
C45: ◆小形電球40W形 | H45: 約 | I45: =0.036*K32*K34*K36*R34 -> 1734.48 | L45: 円 | T45: 基準
C46: （40Wタイプ36Wで試算*4）
C48: ◆ＬＥＤ電球50W形 | H48: 約 | I48: =0.0052*K32*K34*K36*R34 -> 250.536 | L48: 円 | T48: =(I45-I48)/I45 -> 0.8555555556
C49: （50Wタイプ5.2Wで試算*5）
H50: 小形電球40W形と比べ 約 | I50: =I45-I48 -> 1483.944 | L50: 円お得です！（年間電気代の差額）
B52: ●回収期間 | H52: イニシャルコストを 約 | I52: =IF(K40=0,"",ROUNDUP(K40*K32/(I45-I48),1)) ->  | L52: 年で回収できます！
D53: ＊ イニシャルコストの回収期間は、ＬＥＤ電球の購入価格を年間電気代の差額で割り試算しています。
D54: 試算条件によっては、「一般社団法人日本照明工業会ガイド111」 による適正交換時期や耐用の限度を超える場合が
D55: ありますが、寿命を保証するものではありませんので、予めご了承ください。
B57: ＊1 明るさの目安は、JIS C 8158 : 2012 附属書B によります。
B58: ＊2 定格寿命は、LED単体で定められた温度設計に基づいて算出した設計寿命であり、使用環境・使用方法により寿命が異なります。
B59: ＊3 年間電気代は、電力料金22円/kWh（税込）で試算しています（一般社団法人日本照明工業会 技術資料114-1996による）。
B60: ＊4 当社小形電球40W形（KR100/110V36WW、定格消費電力36W、全光束460lm、定格寿命2,000時間）で試算。
B61: ＊5 当社LED電球50W形（LDA5D-G-E17/S/50C、定格消費電力5.2W、全光束600lm、定格寿命40,000時間）で試算。
B64: =TOP!B61 -> 2017年 3月版

Sheet 5LGE17S40C
G5: 形式 | L5: LDA5L-G-E17/S/40C
L13: オープン価格★ 屋内用
G14: 光の広がり | L14: 広配光タイプ
G15: 光色 | L15: 電球色
G16: 全光束（lm） | L16: 500
B17: ●小形電球40W形相当 | G17: 明るさの目安*1 | L17: 小形電球40W形相当
B18: の明るさ | G18: 定格消費電力（W） | L18: 5
B19: ●断熱材施工器具対応 | G19: エネルギー消費効率（lm/W） | L19: =ROUNDDOWN(L16/L18,1) -> 100
B20: ●高効率で広がる光 | G20: 質量（g） | L20: 45
B21: ●密閉形器具対応 | G21: 定格寿命（時間）*2 | L21: 40000
B22: ●定格寿命40,000時間 | G22: 寸法 （mm） | J22: 外径 | L22: 35
J23: 全長 | L23: 74
G24: 断熱材施工器具対応 | L24: ○（保護機能付き）※1
G25: 密閉形器具対応 | L25: ○（保護機能付き）※1
G26: ＊ 調光（明るさが調整できる）機能の付いた照明器具には使用できません（100％点灯でも使用不可）。
G27: ＊ 屋外では使用できません。
B28: ※1 器具内の温度や周囲温度が高くなると保護回路が働き電力を抑えるため、明るさが低下する場合があります。
B30: 小形電球とＬＥＤ電球の電気代の試算ができます。目安としてご活用ください。
B31: ■試算条件を入力ください。
C32: ①使用灯数は？ | K32: 1 | N32: 灯 | Q32: 電力料金単価（税込）*3
C34: ②年間使用日数は？ | K34: 365 | N34: 日 | R34: 22 | T34: 円/kWh
C36: ③1日の点灯時間は？ | K36: 6 | N36: 時間/日 | Q36: に設定しています。
C38: ④年間点灯時間 | K38: =K34*K36 -> 2190 | N38: 時間/年 | Q38: ＊ 任意に変更ができます。
C40: ⑤ＬＥＤ電球の購入価格（税込）は？ | N40: 円/灯 | P40: 合計 | Q40: =K32*K40 -> 0 | T40: 円
D41: ＊ イニシャルコストの回収期間を試算します。
B42: ■試算結果
B43: ●年間電気代*3 | J43: 年間電気代 | T43: 低減効果
C45: ◆小形電球40W形 | H45: 約 | I45: =0.036*K32*K34*K36*R34 -> 1734.48 | L45: 円 | T45: 基準
C46: （40Wタイプ36Wで試算*4）
C48: ◆ＬＥＤ電球40W形 | H48: 約 | I48: =0.005*K32*K34*K36*R34 -> 240.9 | L48: 円 | T48: =(I45-I48)/I45 -> 0.8611111111
C49: （40Wタイプ5.0Wで試算*5）
H50: 小形電球40W形と比べ 約 | I50: =I45-I48 -> 1493.58 | L50: 円お得です！（年間電気代の差額）
B52: ●回収期間 | H52: イニシャルコストを 約 | I52: =IF(K40=0,"",ROUNDUP(K40*K32/(I45-I48),1)) ->  | L52: 年で回収できます！
D53: ＊ イニシャルコストの回収期間は、ＬＥＤ電球の購入価格を年間電気代の差額で割り試算しています。
D54: 試算条件によっては、「一般社団法人日本照明工業会ガイド111」 による適正交換時期や耐用の限度を超える場合が
D55: ありますが、寿命を保証するものではありませんので、予めご了承ください。
B57: ＊1 明るさの目安は、JIS C 8158 : 2012 附属書B によります。
B58: ＊2 定格寿命は、LED単体で定められた温度設計に基づいて算出した設計寿命であり、使用環境・使用方法により寿命が異なります。
B59: ＊3 年間電気代は、電力料金22円/kWh（税込）で試算しています（一般社団法人日本照明工業会 技術資料114-1996による）。
B60: ＊4 当社小形電球40W形（KR100/110V36WW、定格消費電力36W、全光束460lm、定格寿命2,000時間）で試算。
B61: ＊5 当社LED電球40W形（LDA5L-G-E17/S/40C、定格消費電力5.0W、全光束500lm、定格寿命40,000時間）で試算。
B64: =TOP!B61 -> 2017年 3月版

Sheet 7DGE17DS
G5: 形式 | L5: LDA7D-G-E17/DS
L13: オープン価格★ 屋内用
G14: 光の広がり | L14: 広配光タイプ
G15: 光色 | L15: 昼光色
G16: 全光束（lm） | L16: 500
B17: ●小形電球40W形相当 | G17: 明るさの目安*1 | L17: 小形電球40W形相当
B18: の明るさ | G18: 定格消費電力（W） | L18: 7
B19: ●電球のような広がる光 | G19: エネルギー消費効率（lm/W） | L19: =ROUNDDOWN(L16/L18,1) -> 71.4
B20: ●調光器対応 | G20: 質量（g） | L20: 48
B21: ●断熱材施工器具対応 | G21: 定格寿命（時間）*2 | L21: 40000
B22: ●密閉形器具対応 | G22: 寸法 （mm） | J22: 外径 | L22: 35
B23: ●定格寿命40,000時間 | J23: 全長 | L23: 77
G24: 調光器対応 | L24: ○（白熱電球の調光器）※1
G25: 断熱材施工器具対応 | L25: ○（保護機能付き）※2
G26: 密閉形器具対応 | L26: ○（保護機能付き）※2
G27: ＊ 屋外では使用できません。
B28: ※1 次のような調光器と組み合わせて使用した場合、点灯しない場合や調光できない場合があります。[電球用以外の調光器具(蛍光ラン
B29: プ用調光器具など)、人感センサーつき調光器、段調光器、リモコン式調光器、記憶式調光器、容量500W超の調光器のついた器具など]
B30: ※2 器具内の温度や周囲温度が高くなると保護回路が働き電力を抑えるため、明るさが低下する場合があります。
B32: 小形電球とＬＥＤ電球の電気代の試算ができます。目安としてご活用ください。
B33: ■試算条件を入力ください。
C34: ①使用灯数は？ | K34: 1 | N34: 灯 | Q34: 電力料金単価（税込）*3
C36: ②年間使用日数は？ | K36: 365 | N36: 日 | R36: 22 | T36: 円/kWh
C38: ③1日の点灯時間は？ | K38: 6 | N38: 時間/日 | Q38: に設定しています。
C40: ④年間点灯時間 | K40: =K36*K38 -> 2190 | N40: 時間/年 | Q40: ＊ 任意に変更ができます。
C42: ⑤ＬＥＤ電球の購入価格（税込）は？ | N42: 円/灯 | P42: 合計 | Q42: =K34*K42 -> 0 | T42: 円
D43: ＊ イニシャルコストの回収期間を試算します。
B44: ■試算結果
B45: ●年間電気代*3 | J45: 年間電気代 | T45: 低減効果
C47: ◆小形電球40W形 | H47: 約 | I47: =0.036*K34*K36*K38*R36 -> 1734.48 | L47: 円 | T47: 基準
C48: （40Wタイプ36Wで試算*4）
C50: ◆ＬＥＤ電球40W形 | H50: 約 | I50: =0.007*K34*K36*K38*R36 -> 337.26 | L50: 円 | T50: =(I47-I50)/I47 -> 0.8055555556
C51: （40Wタイプ7.0Wで試算*5）
H52: 小形電球40W形と比べ 約 | I52: =I47-I50 -> 1397.22 | L52: 円お得です！（年間電気代の差額）
B54: ●回収期間 | H54: イニシャルコストを 約 | I54: =IF(K42=0,"",ROUNDUP(K42*K34/(I47-I50),1)) ->  | L54: 年で回収できます！
D55: ＊ イニシャルコストの回収期間は、ＬＥＤ電球の購入価格を年間電気代の差額で割り試算しています。
D56: 試算条件によっては、「一般社団法人日本照明工業会ガイド111」 による適正交換時期や耐用の限度を超える場合が
D57: ありますが、寿命を保証するものではありませんので、予めご了承ください。
B59: ＊1 明るさの目安は、JIS C 8158 : 2012 附属書B によります。
B60: ＊2 定格寿命は、LED単体で定められた温度設計に基づいて算出した設計寿命であり、使用環境・使用方法により寿命が異なります。
B61: ＊3 年間電気代は、電力料金22円/kWh（税込）で試算しています（一般社団法人日本照明工業会 技術資料114-1996による）。
B62: ＊4 当社小形電球40W形（KR100/110V36WW、定格消費電力36W、全光束460lm、定格寿命2,000時間）で試算。
B63: ＊5 当社LED電球40W形（LDA7D-G-E17/DS、定格消費電力7.0W、全光束500lm、定格寿命40,000時間）で試算。
B64: =TOP!B61 -> 2017年 3月版

Sheet 7LGE17DS
G5: 形式 | L5: LDA7L-G-E17/DS
L13: オープン価格★ 屋内用
G14: 光の広がり | L14: 広配光タイプ
G15: 光色 | L15: 電球色
G16: 全光束（lm） | L16: 420
B17: ●電球25W形相当の明るさ | G17: 明るさの目安*1 | L17: 小形電球25W形相当
B18: ●電球のような広がる光 | G18: 定格消費電力（W） | L18: 7
B19: ●調光器対応 | G19: エネルギー消費効率（lm/W） | L19: =ROUNDDOWN(L16/L18,1) -> 60
B20: ●断熱材施工器具対応 | G20: 質量（g） | L20: 48
B21: ●密閉形器具対応 | G21: 定格寿命（時間）*2 | L21: 40000
B22: ●定格寿命40,000時間 | G22: 寸法 （mm） | J22: 外径 | L22: 35
J23: 全長 | L23: 77
G24: 調光器対応 | L24: ○（白熱電球の調光器）※1
G25: 断熱材施工器具対応 | L25: ○（保護機能付き）※2
G26: 密閉形器具対応 | L26: ○（保護機能付き）※2
G27: ＊ 屋外では使用できません。
B28: ※1 次のような調光器と組み合わせて使用した場合、点灯しない場合や調光できない場合があります。[電球用以外の調光器具(蛍光ラン
B29: プ用調光器具など)、人感センサーつき調光器、段調光器、リモコン式調光器、記憶式調光器、容量500W超の調光器のついた器具など]
B30: ※2 器具内の温度や周囲温度が高くなると保護回路が働き電力を抑えるため、明るさが低下する場合があります。
B32: 小形電球とＬＥＤ電球の電気代の試算ができます。目安としてご活用ください。
B33: ■試算条件を入力ください。
C34: ①使用灯数は？ | K34: 1 | N34: 灯 | Q34: 電力料金単価（税込）*3
C36: ②年間使用日数は？ | K36: 365 | N36: 日 | R36: 22 | T36: 円/kWh
C38: ③1日の点灯時間は？ | K38: 6 | N38: 時間/日 | Q38: に設定しています。
C40: ④年間点灯時間 | K40: =K36*K38 -> 2190 | N40: 時間/年 | Q40: ＊ 任意に変更ができます。
C42: ⑤ＬＥＤ電球の購入価格（税込）は？ | N42: 円/灯 | P42: 合計 | Q42: =K34*K42 -> 0 | T42: 円
D43: ＊ イニシャルコストの回収期間を試算します。
B44: ■試算結果
B45: ●年間電気代*3 | J45: 年間電気代 | T45: 低減効果
C47: ◆小形電球25W形 | H47: 約 | I47: =0.022*K34*K36*K38*R36 -> 1059.96 | L47: 円 | T47: 基準
C48: （25Wタイプ22Wで試算*4）
C50: ◆ＬＥＤ電球25W形 | H50: 約 | I50: =0.007*K34*K36*K38*R36 -> 337.26 | L50: 円 | T50: =(I47-I50)/I47 -> 0.6818181818
C51: （25Wタイプ7.0Wで試算*5）
H52: 小形電球25W形と比べ 約 | I52: =I47-I50 -> 722.7 | L52: 円お得です！（年間電気代の差額）
B54: ●回収期間 | H54: イニシャルコストを 約 | I54: =IF(K42=0,"",ROUNDUP(K42*K34/(I47-I50),1)) ->  | L54: 年で回収できます！
D55: ＊ イニシャルコストの回収期間は、ＬＥＤ電球の購入価格を年間電気代の差額で割り試算しています。
D56: 試算条件によっては、「一般社団法人日本照明工業会ガイド111」 による適正交換時期や耐用の限度を超える場合が
D57: ありますが、寿命を保証するものではありませんので、予めご了承ください。
B59: ＊1 明るさの目安は、JIS C 8158 : 2012 附属書B によります。
B60: ＊2 定格寿命は、LED単体で定められた温度設計に基づいて算出した設計寿命であり、使用環境・使用方法により寿命が異なります。
B61: ＊3 年間電気代は、電力料金22円/kWh（税込）で試算しています（一般社団法人日本照明工業会 技術資料114-1996による）。
B62: ＊4 当社小形電球25W形（KR100/110V22WW、定格消費電力22W、全光束250lm、定格寿命2,000時間）で試算。
B63: ＊5 当社LED電球25W形（LDA7L-G-E17/DS、定格消費電力7.0W、全光束420lm、定格寿命40,000時間）で試算。
B64: =TOP!B61 -> 2017年 3月版

Sheet 6DHE17S60C
G5: 形式 | L5: LDA6D-H-E17/S/60C
L13: オープン価格★ 屋内用
G14: 光の広がり | L14: 下方配光タイプ
G15: 光色 | L15: 昼光色
G16: 全光束（lm） | L16: 760
B17: ●小形電球60W形相当 | G17: 明るさの目安*1 | L17: 小形電球60W形相当
B18: の明るさ | G18: 定格消費電力（W） | L18: 5.8
B19: ●下方配光タイプ | G19: エネルギー消費効率（lm/W） | L19: =ROUNDDOWN(L16/L18,1) -> 131
B20: ●電球同等コンパクトサイズ | G20: 質量（g） | L20: 55
B21: ●断熱材施工器具対応 | G21: 定格寿命（時間）*2 | L21: 40000
B22: ●密閉形器具対応 | G22: 寸法 （mm） | J22: 外径 | L22: 40
B23: ●定格寿命40,000時間 | J23: 全長 | L23: 67
G24: 断熱材施工器具対応 | L24: ○（保護機能付き）※1
G25: 密閉形器具対応 | L25: ○（保護機能付き）※1
G26: ＊ 調光（明るさが調整できる）機能の付いた照明器具には使用できません（100％点灯でも使用不可）。
G27: ＊ 屋外では使用できません。
B28: ※1 器具内の温度や周囲温度が高くなると保護回路が働き電力を抑えるため、明るさが低下する場合があります。
B30: 小形電球とＬＥＤ電球の電気代の試算ができます。目安としてご活用ください。
B31: ■試算条件を入力ください。
C32: ①使用灯数は？ | K32: 1 | N32: 灯 | Q32: 電力料金単価（税込）*3
C34: ②年間使用日数は？ | K34: 365 | N34: 日 | R34: 22 | T34: 円/kWh
C36: ③1日の点灯時間は？ | K36: 6 | N36: 時間/日 | Q36: に設定しています。
C38: ④年間点灯時間 | K38: =K34*K36 -> 2190 | N38: 時間/年 | Q38: ＊ 任意に変更ができます。
C40: ⑤ＬＥＤ電球の購入価格（税込）は？ | N40: 円/灯 | P40: 合計 | Q40: =K32*K40 -> 0 | T40: 円
D41: ＊ イニシャルコストの回収期間を試算します。
B42: ■試算結果
B43: ●年間電気代*3 | J43: 年間電気代 | T43: 低減効果
C45: ◆小形電球60W形 | H45: 約 | I45: =0.054*K32*K34*K36*R34 -> 2601.72 | L45: 円 | T45: 基準
C46: （60Wタイプ54Wで試算*4）
C48: ◆ＬＥＤ電球60W形 | H48: 約 | I48: =0.0058*K32*K34*K36*R34 -> 279.444 | L48: 円 | T48: =(I45-I48)/I45 -> 0.8925925926
C49: （60Wタイプ5.8Wで試算*5）
H50: 小形電球60W形と比べ 約 | I50: =I45-I48 -> 2322.276 | L50: 円お得です！（年間電気代の差額）
B52: ●回収期間 | H52: イニシャルコストを 約 | I52: =IF(K40=0,"",ROUNDUP(K40*K32/(I45-I48),1)) ->  | L52: 年で回収できます！
D53: ＊ イニシャルコストの回収期間は、ＬＥＤ電球の購入価格を年間電気代の差額で割り試算しています。
D54: 試算条件によっては、「一般社団法人日本照明工業会ガイド111」 による適正交換時期や耐用の限度を超える場合が
D55: ありますが、寿命を保証するものではありませんので、予めご了承ください。
B57: ＊1 明るさの目安は、JIS C 8158 : 2012 附属書B によります。
B58: ＊2 定格寿命は、LED単体で定められた温度設計に基づいて算出した設計寿命であり、使用環境・使用方法により寿命が異なります。
B59: ＊3 年間電気代は、電力料金22円/kWh（税込）で試算しています（一般社団法人日本照明工業会 技術資料114-1996による）。
B60: ＊4 当社小形電球60W形（KR100/110V54WW、定格消費電力54W、全光束760lm、定格寿命2,000時間）で試算。
B61: ＊5 当社LED電球60W形（LDA6D-H-E17/S/60C、定格消費電力5.8W、全光束760lm、定格寿命40,000時間）で試算。
B64: =TOP!B61 -> 2017年 3月版

Sheet 7LHE17S60C
G5: 形式 | L5: LDA7L-H-E17/S/60C
L13: オープン価格★ 屋内用
G14: 光の広がり | L14: 下方配光タイプ
G15: 光色 | L15: 電球色
G16: 全光束（lm） | L16: 760
B17: ●小形電球60W形相当 | G17: 明るさの目安*1 | L17: 小形電球60W形相当
B18: の明るさ | G18: 定格消費電力（W） | L18: 6.9
B19: ●下方配光タイプ | G19: エネルギー消費効率（lm/W） | L19: =ROUNDDOWN(L16/L18,1) -> 110.1
B20: ●電球同等コンパクトサイズ | G20: 質量（g） | L20: 55
B21: ●断熱材施工器具対応 | G21: 定格寿命（時間）*2 | L21: 40000
B22: ●密閉形器具対応 | G22: 寸法 （mm） | J22: 外径 | L22: 40
B23: ●定格寿命40,000時間 | J23: 全長 | L23: 67
G24: 断熱材施工器具対応 | L24: ○（保護機能付き）※1
G25: 密閉形器具対応 | L25: ○（保護機能付き）※1
G26: ＊ 調光（明るさが調整できる）機能の付いた照明器具には使用できません（100％点灯でも使用不可）。
G27: ＊ 屋外では使用できません。
B28: ※1 器具内の温度や周囲温度が高くなると保護回路が働き電力を抑えるため、明るさが低下する場合があります。
B30: 小形電球とＬＥＤ電球の電気代の試算ができます。目安としてご活用ください。
B31: ■試算条件を入力ください。
C32: ①使用灯数は？ | K32: 1 | N32: 灯 | Q32: 電力料金単価（税込）*3
C34: ②年間使用日数は？ | K34: 365 | N34: 日 | R34: 22 | T34: 円/kWh
C36: ③1日の点灯時間は？ | K36: 6 | N36: 時間/日 | Q36: に設定しています。
C38: ④年間点灯時間 | K38: =K34*K36 -> 2190 | N38: 時間/年 | Q38: ＊ 任意に変更ができます。
C40: ⑤ＬＥＤ電球の購入価格（税込）は？ | N40: 円/灯 | P40: 合計 | Q40: =K32*K40 -> 0 | T40: 円
D41: ＊ イニシャルコストの回収期間を試算します。
B42: ■試算結果
B43: ●年間電気代*3 | J43: 年間電気代 | T43: 低減効果
C45: ◆小形電球40W形 | H45: 約 | I45: =0.036*K32*K34*K36*R34 -> 1734.48 | L45: 円 | T45: 基準
C46: （40Wタイプ36Wで試算*4）
C48: ◆ＬＥＤ電球50W形 | H48: 約 | I48: =0.0069*K32*K34*K36*R34 -> 332.442 | L48: 円 | T48: =(I45-I48)/I45 -> 0.8083333333
C49: （50Wタイプ6.9Wで試算*5）
H50: 小形電球40W形と比べ 約 | I50: =I45-I48 -> 1402.038 | L50: 円お得です！（年間電気代の差額）
B52: ●回収期間 | H52: イニシャルコストを 約 | I52: =IF(K40=0,"",ROUNDUP(K40*K32/(I45-I48),1)) ->  | L52: 年で回収できます！
D53: ＊ イニシャルコストの回収期間は、ＬＥＤ電球の購入価格を年間電気代の差額で割り試算しています。
D54: 試算条件によっては、「一般社団法人日本照明工業会ガイド111」 による適正交換時期や耐用の限度を超える場合が
D55: ありますが、寿命を保証するものではありませんので、予めご了承ください。
B57: ＊1 明るさの目安は、JIS C 8158 : 2012 附属書B によります。
B58: ＊2 定格寿命は、LED単体で定められた温度設計に基づいて算出した設計寿命であり、使用環境・使用方法により寿命が異なります。
B59: ＊3 年間電気代は、電力料金22円/kWh（税込）で試算しています（一般社団法人日本照明工業会 技術資料114-1996による）。
B60: ＊4 当社小形電球40W形（KR100/110V36WW、定格消費電力36W、全光束460lm、定格寿命2,000時間）で試算。
B61: ＊5 当社LED電球60W形（LDA7L-H-E17/S/60C、定格消費電力6.9W、全光束760lm、定格寿命40,000時間）で試算。
B64: =TOP!B61 -> 2017年 3月版

Sheet 4DHE17S40C
G5: 形式 | L5: LDA4D-H-E17/S/40C
L13: オープン価格★ 屋内用
G14: 光の広がり | L14: 下方配光タイプ
G15: 光色 | L15: 昼光色
G16: 全光束（lm） | L16: 440
B17: ●小形電球40W形相当 | G17: 明るさの目安*1 | L17: 小形電球40W形相当
B18: の明るさ | G18: 定格消費電力（W） | L18: 4
B19: ●下方配光タイプ | G19: エネルギー消費効率（lm/W） | L19: =ROUNDDOWN(L16/L18,1) -> 110
B20: ●電球ジャストサイズ | G20: 質量（g） | L20: 35
B21: ●断熱材施工器具対応 | G21: 定格寿命（時間）*2 | L21: 40000
B22: ●密閉形器具対応 | G22: 寸法 （mm） | J22: 外径 | L22: 35
B23: ●定格寿命40,000時間 | J23: 全長 | L23: 67
G24: 断熱材施工器具対応 | L24: ○（保護機能付き）※1
G25: 密閉形器具対応 | L25: ○（保護機能付き）※1
G26: ＊ 調光（明るさが調整できる）機能の付いた照明器具には使用できません（100％点灯でも使用不可）。
G27: ＊ 屋外では使用できません。
B28: ※1 器具内の温度や周囲温度が高くなると保護回路が働き電力を抑えるため、明るさが低下する場合があります。
B30: 小形電球とＬＥＤ電球の電気代の試算ができます。目安としてご活用ください。
B31: ■試算条件を入力ください。
C32: ①使用灯数は？ | K32: 1 | N32: 灯 | Q32: 電力料金単価（税込）*3
C34: ②年間使用日数は？ | K34: 365 | N34: 日 | R34: 22 | T34: 円/kWh
C36: ③1日の点灯時間は？ | K36: 6 | N36: 時間/日 | Q36: に設定しています。
C38: ④年間点灯時間 | K38: =K34*K36 -> 2190 | N38: 時間/年 | Q38: ＊ 任意に変更ができます。
C40: ⑤ＬＥＤ電球の購入価格（税込）は？ | N40: 円/灯 | P40: 合計 | Q40: =K32*K40 -> 0 | T40: 円
D41: ＊ イニシャルコストの回収期間を試算します。
B42: ■試算結果
B43: ●年間電気代*3 | J43: 年間電気代 | T43: 低減効果
C45: ◆小形電球40W形 | H45: 約 | I45: =0.036*K32*K34*K36*R34 -> 1734.48 | L45: 円 | T45: 基準
C46: （40Wタイプ36Wで試算*4）
C48: ◆ＬＥＤ電球50W形 | H48: 約 | I48: =0.004*K32*K34*K36*R34 -> 192.72 | L48: 円 | T48: =(I45-I48)/I45 -> 0.8888888889
C49: （50Wタイプ4.0Wで試算*5）
H50: 小形電球40W形と比べ 約 | I50: =I45-I48 -> 1541.76 | L50: 円お得です！（年間電気代の差額）
B52: ●回収期間 | H52: イニシャルコストを 約 | I52: =IF(K40=0,"",ROUNDUP(K40*K32/(I45-I48),1)) ->  | L52: 年で回収できます！
D53: ＊ イニシャルコストの回収期間は、ＬＥＤ電球の購入価格を年間電気代の差額で割り試算しています。
D54: 試算条件によっては、「一般社団法人日本照明工業会ガイド111」 による適正交換時期や耐用の限度を超える場合が
D55: ありますが、寿命を保証するものではありませんので、予めご了承ください。
B57: ＊1 明るさの目安は、JIS C 8158 : 2012 附属書B によります。
B58: ＊2 定格寿命は、LED単体で定められた温度設計に基づいて算出した設計寿命であり、使用環境・使用方法により寿命が異なります。
B59: ＊3 年間電気代は、電力料金22円/kWh（税込）で試算しています（一般社団法人日本照明工業会 技術資料114-1996による）。
B60: ＊4 当社小形電球40W形（KR100/110V36WW、定格消費電力36W、全光束460lm、定格寿命2,000時間）で試算。
B61: ＊5 当社LED電球40W形（LDA4D-H-E17/S/40C、定格消費電力4.0W、全光束440lm、定格寿命40,000時間）で試算。
B64: =TOP!B61 -> 2017年 3月版

Sheet 4LHE17S40C
G5: 形式 | L5: LDA4L-H-E17/S/40C
L13: オープン価格★ 屋内用
G14: 光の広がり | L14: 下方配光タイプ
G15: 光色 | L15: 電球色
G16: 全光束（lm） | L16: 440
B17: ●小形電球40W形相当 | G17: 明るさの目安*1 | L17: 小形電球40W形相当
B18: の明るさ | G18: 定格消費電力（W） | L18: 4.4
B19: ●下方配光タイプ | G19: エネルギー消費効率（lm/W） | L19: =ROUNDDOWN(L16/L18,1) -> 100
B20: ●電球ジャストサイズ | G20: 質量（g） | L20: 35
B21: ●断熱材施工器具対応 | G21: 定格寿命（時間）*2 | L21: 40000
B22: ●密閉形器具対応 | G22: 寸法 （mm） | J22: 外径 | L22: 35
B23: ●定格寿命40,000時間 | J23: 全長 | L23: 67
G24: 断熱材施工器具対応 | L24: ○（保護機能付き）※1
G25: 密閉形器具対応 | L25: ○（保護機能付き）※1
G26: ＊ 調光（明るさが調整できる）機能の付いた照明器具には使用できません（100％点灯でも使用不可）。
G27: ＊ 屋外では使用できません。
B28: ※1 器具内の温度や周囲温度が高くなると保護回路が働き電力を抑えるため、明るさが低下する場合があります。
B30: 小形電球とＬＥＤ電球の電気代の試算ができます。目安としてご活用ください。
B31: ■試算条件を入力ください。
C32: ①使用灯数は？ | K32: 1 | N32: 灯 | Q32: 電力料金単価（税込）*3
C34: ②年間使用日数は？ | K34: 365 | N34: 日 | R34: 22 | T34: 円/kWh
C36: ③1日の点灯時間は？ | K36: 6 | N36: 時間/日 | Q36: に設定しています。
C38: ④年間点灯時間 | K38: =K34*K36 -> 2190 | N38: 時間/年 | Q38: ＊ 任意に変更ができます。
C40: ⑤ＬＥＤ電球の購入価格（税込）は？ | N40: 円/灯 | P40: 合計 | Q40: =K32*K40 -> 0 | T40: 円
D41: ＊ イニシャルコストの回収期間を試算します。
B42: ■試算結果
B43: ●年間電気代*3 | J43: 年間電気代 | T43: 低減効果
C45: ◆小形電球40W形 | H45: 約 | I45: =0.036*K32*K34*K36*R34 -> 1734.48 | L45: 円 | T45: 基準
C46: （40Wタイプ36Wで試算*4）
C48: ◆ＬＥＤ電球40W形 | H48: 約 | I48: =0.0044*K32*K34*K36*R34 -> 211.992 | L48: 円 | T48: =(I45-I48)/I45 -> 0.8777777778
C49: （40Wタイプ4.4Wで試算*5）
H50: 小形電球40W形と比べ 約 | I50: =I45-I48 -> 1522.488 | L50: 円お得です！（年間電気代の差額）
B52: ●回収期間 | H52: イニシャルコストを 約 | I52: =IF(K40=0,"",ROUNDUP(K40*K32/(I45-I48),1)) ->  | L52: 年で回収できます！
D53: ＊ イニシャルコストの回収期間は、ＬＥＤ電球の購入価格を年間電気代の差額で割り試算しています。
D54: 試算条件によっては、「一般社団法人日本照明工業会ガイド111」 による適正交換時期や耐用の限度を超える場合が
D55: ありますが、寿命を保証するものではありませんので、予めご了承ください。
B57: ＊1 明るさの目安は、JIS C 8158 : 2012 附属書B によります。
B58: ＊2 定格寿命は、LED単体で定められた温度設計に基づいて算出した設計寿命であり、使用環境・使用方法により寿命が異なります。
B59: ＊3 年間電気代は、電力料金22円/kWh（税込）で試算しています（一般社団法人日本照明工業会 技術資料114-1996による）。
B60: ＊4 当社小形電球40W形（KR100/110V36WW、定格消費電力36W、全光束460lm、定格寿命2,000時間）で試算。
B61: ＊5 当社LED電球40W形（LDA4L-H-E17/S/40C、定格消費電力4.4W、全光束440lm、定格寿命40,000時間）で試算。
B64: =TOP!B61 -> 2017年 3月版

Sheet 7LE11B
G5: 形式 | K5: LDR7L-N-E11-F | O5: LDR7L-M-E11-F | S5: LDR7L-W-E11-F
K14: オープン価格★ 屋内用 | O14: オープン価格★ 屋内用 | S14: オープン価格★ 屋内用
G15: 光の広がり | K15: 狭角タイプ | O15: 中角タイプ | S15: 広角タイプ
G16: ビームの開き（配光角） | K16: 11° | O16: 18° | S16: 30°
B17: ●しっかり明るく きわだつ配光 | G17: 光色 | K17: 電球色
B18: ●最大光度3,500カンデラ | G18: 全光束（lm） | K18: 580 | O18: 600 | S18: 640
B19: （中角タイプ） | G19: 最大光度(cd)*1 | K19: 6800 | O19: 3500 | S19: 1800
B20: ●ハロゲン電球に近い大きさ | G20: 平均演色評価数（Ra） | K20: 80
B21: ●定格寿命40,000時間 | G21: 定格消費電力（W） | K21: 6.8
G22: エネルギー消費効率（lm/W） | K22: =ROUNDDOWN(K18/K21,1) -> 85.2 | O22: =ROUNDDOWN(O18/K21,1) -> 88.2 | S22: =ROUNDDOWN(S18/K21,1) -> 94.1
G23: 質量（g） | K23: 80
G24: 定格寿命（時間）*2 | K24: 40000
G25: 寸法 （mm） | I25: 外径 | K25: 50
I26: 全長 | K26: 66 | O26: 65 | S26: 65
G27: 断熱材施工器具対応 | K27: ×
G28: 密閉形器具対応 | K28: ×
G29: ＊調光(明るさが調整できる)機能の付いた照明器具には使用できません(100％点灯でも使用不可)。
G30: ＊密閉形器具の種類によっては使用できない場合があります。
G31: ＊器具内の温度が高くなると保護回路が働き電力を抑えるため、明るさが低下する場合があります。
G32: ＊断熱材施工器具[SGI、SG、SB形表示器具]では使用できません。
B34: ハロゲン電球とＬＥＤ電球の電気代の試算ができます。目安としてご活用ください。
B35: ■試算条件を入力ください。
C36: ①使用灯数は？ | K36: 1 | N36: 灯 | R36: 電力料金単価（税込）*3
C38: ②年間使用日数は？ | K38: 250 | N38: 日 | S38: 22 | U38: 円/kWh
C40: ③1日の点灯時間は？ | K40: 12 | N40: 時間/日 | R40: に設定しています。
C42: ④年間点灯時間 | K42: =K38*K40 -> 3000 | N42: 時間/年 | R42: ＊ 任意に変更ができます。
C44: ⑤ＬＥＤ電球の購入価格（税込）は？ | N44: 円/灯 | Q44: 合計 | R44: =K36*K44 -> 0 | U44: 円
D45: ＊ イニシャルコストの回収期間を試算します。
B46: ■試算結果
B47: ●年間電気代*3 | J47: 年間電気代 | U47: 低減効果
C49: ◆ハロゲン電球60W形 | H49: 約 | I49: =0.06*K36*K38*K40*S38 -> 3960 | L49: 円 | U49: 基準
C50: （60Wタイプ60Wで試算*4）
C52: ◆ＬＥＤ電球 | H52: 約 | I52: =0.007*K36*K38*K40*S38 -> 462 | L52: 円 | U52: =(I49-I52)/I49 -> 0.8833333333
C53: （7.0Wで試算*5）
H54: ハロゲン電球60W形と比べ 約 | I54: =I49-I52 -> 3498 | L54: 円お得です！（年間電気代の差額）
B56: ●回収期間 | H56: イニシャルコストを 約 | I56: =IF(K44=0,"",ROUNDUP(K44*K36/(I49-I52),1)) ->  | L56: 年で回収できます！
D57: ＊ イニシャルコストの回収期間は、ＬＥＤ電球の購入価格を年間電気代の差額で割り試算しています。
D58: 試算条件によっては、「一般社団法人日本照明工業会ガイド111」 による適正交換時期や耐用の限度を超える場合が
D59: ありますが、寿命を保証するものではありませんので、予めご了承ください。
B61: ＊1 全光束は同じでもビームの開きにより最大光度は異なります。用途に合わせた最大光度でお選びください。
B62: ＊2 定格寿命は、LED単体で定められた温度設計に基づいて算出した設計寿命であり、使用環境・使用方法により寿命が異なります。
B63: ＊3 年間電気代は、電力料金22円/kWh（税込）で試算しています（一般社団法人日本照明工業会 技術資料114-1996による）。
B64: ＊4 当社ハロゲン電球60W形（JDR110V60W/K5ME11、定格消費電力60W、定格寿命3,000時間）で試算。
B65: ＊5 当社LED電球（LDR7L-M-E11-B、定格消費電力7.0W、定格寿命40,000時間）で試算。
B66: =TOP!B61 -> 2017年 3月版

Sheet 5LE11D
G5: 形式 | K5: LDR5L-M-E11/D/C
K14: オープン価格★ 屋内用
G15: 光の広がり | K15: 中角タイプ
G16: ビームの開き（配光角） | K16: 18°
B17: ●最大光度2,300カンデラ | G17: 光色 | K17: 電球色
B18: （中角タイプ） | G18: 全光束（lm） | K18: 370
B19: ●ハロゲン電球に近い大きさ | G19: 最大光度(cd)*1 | K19: 2300
B20: ●ハロゲン電球のような | G20: 平均演色評価数（Ra） | K20: 80
B21: 光の広がり | G21: 定格消費電力（W） | K21: 4.7
B22: ●定格寿命40,000時間 | G22: エネルギー消費効率（lm/W） | K22: =K18/K21 -> 78.72340426
G23: 質量（g） | K23: 76
G24: 定格寿命（時間）*2 | K24: 40000
G25: 寸法 （mm） | I25: 外径 | K25: 50
I26: 全長 | K26: 65
G27: 断熱材施工器具対応 | K27: ×
G28: 密閉形器具対応 | K28: ×
G29: ＊次のような調光器と組み合わせた場合、点灯しない場合や調光できない場合があります。
G30: ［電球用以外の調光器具(蛍光ランプ用調光器など)、人感センサーつき調光器、段調光器、リモコン式調光器、
G31: 記憶式調光器、容量1,000W以上の調光器のついた器具など]調光器の種類によっては、ちらつくことがあります。
G32: ＊密閉形または密閉に近い器具(適合表示器具を除く)、断熱材施工器具や屋外では使用できません。
B34: ハロゲン電球とＬＥＤ電球の電気代の試算ができます。目安としてご活用ください。
B35: ■試算条件を入力ください。
C36: ①使用灯数は？ | K36: 1 | N36: 灯 | R36: 電力料金単価（税込）*3
C38: ②年間使用日数は？ | K38: 250 | N38: 日 | S38: 22 | U38: 円/kWh
C40: ③1日の点灯時間は？ | K40: 12 | N40: 時間/日 | R40: に設定しています。
C42: ④年間点灯時間 | K42: =K38*K40 -> 3000 | N42: 時間/年 | R42: ＊ 任意に変更ができます。
C44: ⑤ＬＥＤ電球の購入価格（税込）は？ | N44: 円/灯 | Q44: 合計 | R44: =K36*K44 -> 0 | U44: 円
D45: ＊ イニシャルコストの回収期間を試算します。
B46: ■試算結果
B47: ●年間電気代*3 | J47: 年間電気代 | U47: 低減効果
C49: ◆ハロゲン電球40W形 | H49: 約 | I49: =0.04*K36*K38*K40*S38 -> 2640 | L49: 円 | U49: 基準
C50: （40Wタイプ40Wで試算*4）
C52: ◆ＬＥＤ電球 | H52: 約 | I52: =0.0047*K36*K38*K40*S38 -> 310.2 | L52: 円 | U52: =(I49-I52)/I49 -> 0.8825
C53: （4.7Wで試算*5）
H54: ハロゲン電球60W形と比べ 約 | I54: =I49-I52 -> 2329.8 | L54: 円お得です！（年間電気代の差額）
B56: ●回収期間 | H56: イニシャルコストを 約 | I56: =IF(K44=0,"",ROUNDUP(K44*K36/(I49-I52),1)) ->  | L56: 年で回収できます！
D57: ＊ イニシャルコストの回収期間は、ＬＥＤ電球の購入価格を年間電気代の差額で割り試算しています。
D58: 試算条件によっては、「一般社団法人日本照明工業会ガイド111」 による適正交換時期や耐用の限度を超える場合が
D59: ありますが、寿命を保証するものではありませんので、予めご了承ください。
B61: ＊1 全光束は同じでもビームの開きにより最大光度は異なります。用途に合わせた最大光度でお選びください。
B62: ＊2 定格寿命は、LED単体で定められた温度設計に基づいて算出した設計寿命であり、使用環境・使用方法により寿命が異なります。
B63: ＊3 年間電気代は、電力料金22円/kWh（税込）で試算しています（一般社団法人日本照明工業会 技術資料114-1996による）。
B64: ＊4 当社ハロゲン電球40W形（JDR110V40W/K5ME11、定格消費電力40W、定格寿命3,000時間）で試算。
B65: ＊5 当社LED電球（LDR5L-M-E11/D/C、定格消費電力4.7W、定格寿命40,000時間）で試算。
B66: =TOP!B61 -> 2017年 3月版

Sheet 14LW150C
G5: 形式 | K5: LDR14D-H/F | O5: LDR14D-W/150E | S5: LDR14L-W/150C
K14: オープン価格★（昼光色は無地箱となります）
G15: 光の広がり | K15: 特広角タイプ | O15: 広角タイプ | S15: 広角タイプ
G16: ビームの開き（配光角） | K16: 110° | O16: 30° | S16: 30°
B17: ●ビーム電球150W相当 | G17: 光色 | K17: 昼光色 | O17: 昼光色 | S17: 電球色
B18: ●防雨対応で屋外の看板 | G18: 全光束（lm） | K18: 1800 | O18: 1850 | S18: 1550
B19: 等にもおすすめ | G19: 最大光度(cd)*1 | K19: 600 | O19: 4100 | S19: 3300
B20: ●ビーム電球同等サイズ | G20: 平均演色評価数（Ra） | K20: 70 | O20: 70 | S20: 80
B21: ●定格寿命40,000時間 | G21: 定格消費電力（W） | K21: 14.4 | O21: 14.4 | S21: 14.4
G22: エネルギー消費効率（lm/W） | K22: =ROUNDDOWN(K18/K21,1) -> 125 | O22: =ROUNDDOWN(O18/O21,1) -> 128.4 | S22: =ROUNDDOWN(S18/S21,1) -> 107.6
G23: 質量（g） | K23: 325
G24: 定格寿命（時間）*2 | K24: 40000
G25: 寸法 （mm） | I25: 外径 | K25: 121
I26: 全長 | K26: 132
G27: 断熱材施工器具対応 | K27: ×
G28: 密閉形器具対応 | K28: ×
G29: ＊調光(明るさが調整できる)機能の付いた照明器具には使用できません(100％点灯でも使用不可)。
G30: ＊密閉形または密閉に近い器具(適合表示器具を除く)、断熱材施工器具では使用できません。
G31: ＊屋外、雨や水滴のかかる状態や、湿度の高いところで使用する場合は、防水・防雨形の
G32: ビームランプ専用器具をご使用下さい。
B34: ハロゲン電球とＬＥＤ電球の電気代の試算ができます。目安としてご活用ください。
B35: ■試算条件を入力ください。
C36: ①使用灯数は？ | K36: 1 | N36: 灯 | R36: 電力料金単価（税込）*3
C38: ②年間使用日数は？ | K38: 250 | N38: 日 | S38: 22 | U38: 円/kWh
C40: ③1日の点灯時間は？ | K40: 12 | N40: 時間/日 | R40: に設定しています。
C42: ④年間点灯時間 | K42: =K38*K40 -> 3000 | N42: 時間/年 | R42: ＊ 任意に変更ができます。
C44: ⑤ＬＥＤ電球の購入価格（税込）は？ | N44: 円/灯 | Q44: 合計 | R44: =K36*K44 -> 0 | U44: 円
D45: ＊ イニシャルコストの回収期間を試算します。
B46: ■試算結果
B47: ●年間電気代*3 | J47: 年間電気代 | U47: 低減効果
C49: ◆ビーム電球125W形 | H49: 約 | I49: =0.125*K36*K38*K40*S38 -> 8250 | L49: 円 | U49: 基準
C50: （125Wタイプ125Wで試算*4）
C52: ◆ＬＥＤ電球 | H52: 約 | I52: =$K$21*K36*K38*K40*S38/1000 -> 950.4 | L52: 円 | U52: =(I49-I52)/I49 -> 0.8848
C53: （14.4Wで試算*5）
H54: ビーム電球125W形と比べ 約 | I54: =I49-I52 -> 7299.6 | L54: 円お得です！（年間電気代の差額）
B56: ●回収期間 | H56: イニシャルコストを 約 | I56: =IF(K44=0,"",ROUNDUP(K44*K36/(I49-I52),1)) ->  | L56: 年で回収できます！
D57: ＊ イニシャルコストの回収期間は、ＬＥＤ電球の購入価格を年間電気代の差額で割り試算しています。
D58: 試算条件によっては、「一般社団法人日本照明工業会ガイド111」 による適正交換時期や耐用の限度を超える場合が
D59: ありますが、寿命を保証するものではありませんので、予めご了承ください。
B61: ＊1 全光束は同じでもビームの開きにより最大光度は異なります。用途に合わせた最大光度でお選びください。
B62: ＊2 定格寿命は、LED単体で定められた温度設計に基づいて算出した設計寿命であり、使用環境・使用方法により寿命が異なります。
B63: ＊3 年間電気代は、電力料金22円/kWh（税込）で試算しています（一般社団法人日本照明工業会 技術資料114-1996による）。
B64: ＊4 当社ビーム電球125W形（CRF110V125W/M、定格消費電力125W、定格寿命2,000時間）で試算(2013年9月販売終了)。
B65: ＊5 当社ﾋﾞｰﾑ電球150W相当LED電球（定格消費電力14.4W、定格寿命40,000時間）で試算。
B66: =TOP!B61 -> 2017年 3月版

Sheet 7DW100E
G5: 形式 | K5: LDR7D-W/100E
K14: オープン価格★
G15: 光の広がり | K15: 広角タイプ
G16: ビームの開き（配光角） | K16: 30°
B17: ●ビーム電球100W相当 | G17: 光色 | K17: 昼光色
B18: ●ビーム電球のような | G18: 全光束（lm） | K18: 950
B19: 光の広がり | G19: 最大光度(cd)*1 | K19: 1950
B20: ●ビーム電球同等サイズ | G20: 平均演色評価数（Ra） | K20: 70
B21: ●定格寿命40,000時間 | G21: 定格消費電力（W） | K21: 7.3
G22: エネルギー消費効率（lm/W） | K22: =ROUNDDOWN(K18/K21,1) -> 130.1
G23: 質量（g） | K23: 325
G24: 定格寿命（時間）*2 | K24: 40000
G25: 寸法 （mm） | I25: 外径 | K25: 121
I26: 全長 | K26: 132
G27: 断熱材施工器具対応 | K27: ×
G28: 密閉形器具対応 | K28: ×
G29: ＊調光(明るさが調整できる)機能の付いた照明器具には使用できません(100％点灯でも使用不可)。
G30: ＊密閉形または密閉に近い器具(適合表示器具を除く)、断熱材施工器具や屋外では使用できません。
B32: ハロゲン電球とＬＥＤ電球の電気代の試算ができます。目安としてご活用ください。
B33: ■試算条件を入力ください。
C34: ①使用灯数は？ | K34: 1 | N34: 灯 | R34: 電力料金単価（税込）*3
C36: ②年間使用日数は？ | K36: 250 | N36: 日 | S36: 22 | U36: 円/kWh
C38: ③1日の点灯時間は？ | K38: 12 | N38: 時間/日 | R38: に設定しています。
C40: ④年間点灯時間 | K40: =K36*K38 -> 3000 | N40: 時間/年 | R40: ＊ 任意に変更ができます。
C42: ⑤ＬＥＤ電球の購入価格（税込）は？ | N42: 円/灯 | Q42: 合計 | R42: =K34*K42 -> 0 | U42: 円
D43: ＊ イニシャルコストの回収期間を試算します。
B44: ■試算結果
B45: ●年間電気代*3 | J45: 年間電気代 | U45: 低減効果
C47: ◆ビーム電球85W形 | H47: 約 | I47: =0.085*K34*K36*K38*S36 -> 5610 | L47: 円 | U47: 基準
C48: （85Wタイプ85Wで試算*4）
C50: ◆ＬＥＤ電球 | H50: 約 | I50: =$K$21*K34*K36*K38*S36/1000 -> 481.8 | L50: 円 | U50: =(I47-I50)/I47 -> 0.9141176471
C51: (7.3Wで試算*5）
H52: ビーム電球85W形と比べ 約 | I52: =I47-I50 -> 5128.2 | L52: 円お得です！（年間電気代の差額）
B54: ●回収期間 | H54: イニシャルコストを 約 | I54: =IF(K42=0,"",ROUNDUP(K42*K34/(I47-I50),1)) ->  | L54: 年で回収できます！
D55: ＊ イニシャルコストの回収期間は、ＬＥＤ電球の購入価格を年間電気代の差額で割り試算しています。
D56: 試算条件によっては、「一般社団法人日本照明工業会ガイド111」 による適正交換時期や耐用の限度を超える場合が
D57: ありますが、寿命を保証するものではありませんので、予めご了承ください。
B59: ＊1 全光束は同じでもビームの開きにより最大光度は異なります。用途に合わせた最大光度でお選びください。
B60: ＊2 定格寿命は、LED単体で定められた温度設計に基づいて算出した設計寿命であり、使用環境・使用方法により寿命が異なります。
B61: ＊3 年間電気代は、電力料金22円/kWh（税込）で試算しています（一般社団法人日本照明工業会 技術資料114-1996による）。
B62: ＊4 当社ビーム電球85W形（CRF110V85W/M、定格消費電力85W、定格寿命2,000時間）で試算(2013年9月販売終了)。
B63: ＊5 当社LED電球（LDR7D-W/100E、定格消費電力7.3W、定格寿命40,000時間）で試算。
B64: =TOP!B61 -> 2017年 3月版

Sheet 11LW100C
G5: 形式 | K5: LDR11L-W/100C
K14: オープン価格★
G15: 光の広がり | K15: 広角タイプ
G16: ビームの開き（配光角） | K16: 30°
B17: ●ビーム電球100W相当 | G17: 光色 | K17: 電球色
B18: ●ビーム電球のような | G18: 全光束（lm） | K18: 1100
B19: 光の広がり | G19: 最大光度(cd)*1 | K19: 2200
B20: ●ビーム電球同等サイズ | G20: 平均演色評価数（Ra） | K20: 80
B21: ●定格寿命40,000時間 | G21: 定格消費電力（W） | K21: 11
G22: エネルギー消費効率（lm/W） | K22: =ROUNDDOWN(K18/K21,1) -> 100
G23: 質量（g） | K23: 325
G24: 定格寿命（時間）*2 | K24: 40000
G25: 寸法 （mm） | I25: 外径 | K25: 121
I26: 全長 | K26: 132
G27: 断熱材施工器具対応 | K27: ×
G28: 密閉形器具対応 | K28: ×
G29: ＊調光(明るさが調整できる)機能の付いた照明器具には使用できません(100％点灯でも使用不可)。
G30: ＊密閉形または密閉に近い器具(適合表示器具を除く)、断熱材施工器具や屋外では使用できません。
B32: ハロゲン電球とＬＥＤ電球の電気代の試算ができます。目安としてご活用ください。
B33: ■試算条件を入力ください。
C34: ①使用灯数は？ | K34: 2 | N34: 灯 | R34: 電力料金単価（税込）*3
C36: ②年間使用日数は？ | K36: 250 | N36: 日 | S36: 22 | U36: 円/kWh
C38: ③1日の点灯時間は？ | K38: 12 | N38: 時間/日 | R38: に設定しています。
C40: ④年間点灯時間 | K40: =K36*K38 -> 3000 | N40: 時間/年 | R40: ＊ 任意に変更ができます。
C42: ⑤ＬＥＤ電球の購入価格（税込）は？ | N42: 円/灯 | Q42: 合計 | R42: =K34*K42 -> 0 | U42: 円
D43: ＊ イニシャルコストの回収期間を試算します。
B44: ■試算結果
B45: ●年間電気代*3 | J45: 年間電気代 | U45: 低減効果
C47: ◆ビーム電球85W形 | H47: 約 | I47: =0.085*K34*K36*K38*S36 -> 11220 | L47: 円 | U47: 基準
C48: （85Wタイプ85Wで試算*4）
C50: ◆ＬＥＤ電球 | H50: 約 | I50: =$K$21*K34*K36*K38*S36/1000 -> 1452 | L50: 円 | U50: =(I47-I50)/I47 -> 0.8705882353
C51: （11.0Wで試算*5）
H52: ビーム電球85W形と比べ 約 | I52: =I47-I50 -> 9768 | L52: 円お得です！（年間電気代の差額）
B54: ●回収期間 | H54: イニシャルコストを 約 | I54: =IF(K42=0,"",ROUNDUP(K42*K34/(I47-I50),1)) ->  | L54: 年で回収できます！
D55: ＊ イニシャルコストの回収期間は、ＬＥＤ電球の購入価格を年間電気代の差額で割り試算しています。
D56: 試算条件によっては、「一般社団法人日本照明工業会ガイド111」 による適正交換時期や耐用の限度を超える場合が
D57: ありますが、寿命を保証するものではありませんので、予めご了承ください。
B59: ＊1 全光束は同じでもビームの開きにより最大光度は異なります。用途に合わせた最大光度でお選びください。
B60: ＊2 定格寿命は、LED単体で定められた温度設計に基づいて算出した設計寿命であり、使用環境・使用方法により寿命が異なります。
B61: ＊3 年間電気代は、電力料金22円/kWh（税込）で試算しています（一般社団法人日本照明工業会 技術資料114-1996による）。
B62: ＊4 当社ビーム電球85W形（CRF110V85W/M、定格消費電力85W、定格寿命2,000時間）で試算(2013年9月販売終了)。
B63: ＊5 当社LED電球（LDR11L-W/100C、定格消費電力11.0W、定格寿命40,000時間）で試算。
B64: =TOP!B61 -> 2017年 3月版

Sheet 7LW75C
G5: 形式 | K5: LDR7L-W/75C
K14: オープン価格★
G15: 光の広がり | K15: 広角タイプ
G16: ビームの開き（配光角） | K16: 30°
B17: ●ビーム電球75W相当 | G17: 光色 | K17: 電球色
B18: ●ビーム電球のような | G18: 全光束（lm） | K18: 800
B19: 光の広がり | G19: 最大光度(cd)*1 | K19: 1500
B20: ●ビーム電球同等サイズ | G20: 平均演色評価数（Ra） | K20: 80
B21: ●定格寿命40,000時間 | G21: 定格消費電力（W） | K21: 7.3
G22: エネルギー消費効率（lm/W） | K22: 109.5
G23: 質量（g） | K23: 325
G24: 定格寿命（時間）*2 | K24: 40000
G25: 寸法 （mm） | I25: 外径 | K25: 121
I26: 全長 | K26: 132
G27: 断熱材施工器具対応 | K27: ×
G28: 密閉形器具対応 | K28: ×
G29: ＊調光(明るさが調整できる)機能の付いた照明器具には使用できません(100％点灯でも使用不可)。
G30: ＊密閉形または密閉に近い器具(適合表示器具を除く)、断熱材施工器具や屋外では使用できません。
B32: ハロゲン電球とＬＥＤ電球の電気代の試算ができます。目安としてご活用ください。
B33: ■試算条件を入力ください。
C34: ①使用灯数は？ | K34: 1 | N34: 灯 | R34: 電力料金単価（税込）*3
C36: ②年間使用日数は？ | K36: 250 | N36: 日 | S36: 22 | U36: 円/kWh
C38: ③1日の点灯時間は？ | K38: 12 | N38: 時間/日 | R38: に設定しています。
C40: ④年間点灯時間 | K40: =K36*K38 -> 3000 | N40: 時間/年 | R40: ＊ 任意に変更ができます。
C42: ⑤ＬＥＤ電球の購入価格（税込）は？ | N42: 円/灯 | Q42: 合計 | R42: =K34*K42 -> 0 | U42: 円
D43: ＊ イニシャルコストの回収期間を試算します。
B44: ■試算結果
B45: ●年間電気代*3 | J45: 年間電気代 | U45: 低減効果
C47: ◆ビーム電球65W形 | H47: 約 | I47: =0.065*K34*K36*K38*S36 -> 4290 | L47: 円 | U47: 基準
C48: （65Wタイプ65Wで試算*4）
C50: ◆ＬＥＤ電球 | H50: 約 | I50: =$K$21*K34*K36*K38*S36/1000 -> 481.8 | L50: 円 | U50: =(I47-I50)/I47 -> 0.8876923077
C51: （7.3Wで試算*5）
H52: ビーム電球65W形と比べ 約 | I52: =I47-I50 -> 3808.2 | L52: 円お得です！（年間電気代の差額）
B54: ●回収期間 | H54: イニシャルコストを 約 | I54: =IF(K42=0,"",ROUNDUP(K42*K34/(I47-I50),1)) ->  | L54: 年で回収できます！
D55: ＊ イニシャルコストの回収期間は、ＬＥＤ電球の購入価格を年間電気代の差額で割り試算しています。
D56: 試算条件によっては、「一般社団法人日本照明工業会ガイド111」 による適正交換時期や耐用の限度を超える場合が
D57: ありますが、寿命を保証するものではありませんので、予めご了承ください。
B59: ＊1 全光束は同じでもビームの開きにより最大光度は異なります。用途に合わせた最大光度でお選びください。
B60: ＊2 定格寿命は、LED単体で定められた温度設計に基づいて算出した設計寿命であり、使用環境・使用方法により寿命が異なります。
B61: ＊3 年間電気代は、電力料金22円/kWh（税込）で試算しています（一般社団法人日本照明工業会 技術資料114-1996による）。
B62: ＊4 当社ビーム電球65W形（CRF110V65W/M、定格消費電力65W、定格寿命2,000時間）で試算(2013年9月販売終了)。
B63: ＊5 当社LED電球（LDR7L-W/75C、定格消費電力7.3W、定格寿命40,000時間）で試算。
B64: =TOP!B61 -> 2017年 3月版
